Workbook

Sheet Cover
A1: =RIGHT(CELL("filename", $A$1), LEN(CELL("filename", $A$1)) - SEARCH("]", CELL("filename", $A$1))) -> Cover
A3: Workbook title: | B3: PR19 Innovation Funding reconciliation mode
A4: Version: | B4: v1e
A5: Filename: | B5: PR19 Innovation Funding reconciliation model 1e
A6: Date: | B6: 2019-02-27
A7: Author: | B7: Ofwat
A8: Author contact information: | B8: PR19Reconciliationrulebook@ofwat.gov.uk
A11: Summary of workbook: | B11: The model is a whole of industry model with inputs and outputs for all companies housed within one model.
B12: The model calculates the total amount of unused funds to be redistributed to individual companies’ customers.
B13: This is done in line with the original allocation methodology set out in PR19 Final Determinations.
B14: Inputs and calculations are in outturn prices before being converted into real terms 2017-18 CPIH FYA. A time value of
B15: money adjustment is also made discounted to 2024-25 prices.
A17: Known limitations: | B17: n/a
A19: Instructions: | B19: Inputs are added at industry level on InpOverride.
B20: Calculations are completed on the sheet 'Innovation funding return' to calculated any unused and uncommitted funding.
B21: Unused funding is redistributed as per the original proportions .
A23: Amendments: | B23: n/a
A25: References: | B25: APR Table 9a
A27: Error Checks: | B27: =Check!B$8 -> 0
A29: Feedback: | B29: We would welcome feedback on this workbook. Please send any feedback to the following email address:
B30: PR19Reconciliationrulebook@ofwat.gov.uk
A33: END OF SHEET

Sheet Documentation -->

Sheet Style Guide
A1: =RIGHT(CELL("filename", $A$1), LEN(CELL("filename", $A$1)) - SEARCH("]", CELL("filename", $A$1))) -> Style Guide
A3: SHEET TABS
H5: Light Yellow | J5: Input sheets
H7: No colour (default Excel tab colour) | J7: Calculation and documentation sheets
H9: Pale Blue | J9: Key output sheets
H11: Turquoise | J11: Quality control sheets
H13: Yellow | J13: To be completed, temporary, restructured, or deleted
A16: COLOUR
B18: Font colour only
H19: Blue font | J19: Imported from another sheet
H21: Red font | J21: Exported to another sheet (except from Input sheets)
H23: Black font | J23: Within sheet link or calculation
B25: Font + shade combinations
H26: Black font + Light Yellow shade | J26: Inputs
H28: Black font + Light Yellow shade with grey stripe | J28: Inputs that are not expected to be changed
H30: Black font + Light Grey shade on entire row | J30: Within-worksheet counter-flow
H32: Blue font + Light Grey shade on entire row | J32: Between-worksheet counter-flow
H34: Empty Cell with Light Grey shade | J34: Empty cells being deliberately referenced
B36: Other
H37: Black font + Pale Blue shade on entire row | J37: Section separator
H39: Light Turquoise shade | J39: Stored/dead/hard coded outputs
H41: Tan shade | J41: Pre-model time line actuals
H43: Yellow shade | J43: Work in progress / temporary
H45: Lime shade | J45: Values or logic to be reviewed
B47: Error checks
H48: Green shade | J48: OK
H50: Red shade | J50: Error
A52: End of sheet

Sheet ToC
A1: =RIGHT(CELL("filename", $A$1), LEN(CELL("filename", $A$1)) - SEARCH("]", CELL("filename", $A$1))) -> ToC
B3: ASSUMPTIONS | D3: INPUTS | F3: CALCULATIONS | H3: OUTPUTS | J3: Quality Control
B5: =Cover!A1 -> Cover | D5: =InpActive!A1 -> InpActive | F5: =Indexation!A1 -> Indexation | H5: =Outputs!A1 -> Outputs | J5: =Check!A1 -> Check
B6: Model documentation sheet | D6: Inputs sheet | F6: All the indexation related calculations are done in this sheet. | H6: Main ouput sheet showing total to be redistributed | J6: Contains all the model integrity checks and alerts
B8: Style Guide | F8: =Time!A1 -> Time
B9: Explanation of different formatting types | F9: The model timeline and flag calculations are done in this sheet.
B11: =$A$1 -> ToC | F11: ='Innovation funding return'!A1 -> Innovation funding return
B12: Table of contents | F12: Calculated the total unused funding to be restributed
A18: End of sheet

Sheet Inputs-->

Sheet InpActive
A1: =RIGHT(CELL("filename", $A$1), LEN(CELL("filename", $A$1)) - SEARCH("]", CELL("filename", $A$1))) -> InpActive
E2: =Time!E$22 -> Model Period BEG | J2: =Time!J$22 -> 2019-04-01 | K2: =Time!K$22 -> 2020-04-01 | L2: =Time!L$22 -> 2021-04-01 | M2: =Time!M$22 -> 2022-04-01 | N2: =Time!N$22 -> 2023-04-01 | O2: =Time!O$22 -> 2024-04-01 | P2: =Time!P$22 -> 2025-04-01
E3: =Time!E$23 -> Model Period END | F3: =Check!F$8 -> 0 | G3: Error chks | J3: =Time!J$23 -> 2020-03-31 | K3: =Time!K$23 -> 2021-03-31 | L3: =Time!L$23 -> 2022-03-31 | M3: =Time!M$23 -> 2023-03-31 | N3: =Time!N$23 -> 2024-03-31 | O3: =Time!O$23 -> 2025-03-31 | P3: =Time!P$23 -> 2026-03-31
E4: =Time!E$59 -> Pre Forecast vs Forecast | J4: =Time!J$59 -> Pre Fcst | K4: =Time!K$59 -> Forecast | L4: =Time!L$59 -> Forecast | M4: =Time!M$59 -> Forecast | N4: =Time!N$59 -> Forecast | O4: =Time!O$59 -> Forecast | P4: =Time!P$59 -> Post-Fcst
E5: =Time!E$101 -> Financial Year Ending | J5: =Time!J$101 -> 2020 | K5: =Time!K$101 -> 2021 | L5: =Time!L$101 -> 2022 | M5: =Time!M$101 -> 2023 | N5: =Time!N$101 -> 2024 | O5: =Time!O$101 -> 2025 | P5: =Time!P$101 -> 2026
E6: =Time!E$11 -> Model column counter | F6: Constant | G6: Unit | H6: Total | J6: =Time!J$11 -> 1 | K6: =Time!K$11 -> 2 | L6: =Time!L$11 -> 3 | M6: =Time!M$11 -> 4 | N6: =Time!N$11 -> 5 | O6: =Time!O$11 -> 6 | P6: =Time!P$11 -> 7
A8: TIME
E10: First date of time ruler | F10: 2019-04-01 | G10: date
E12: Last Pre Forecast Date | F12: 2020-03-31 | G12: date
E14: Acquisition date (midnight) | F14: 2020-03-31 | G14: date
E15: Length of forecast period | F15: 5 | G15: years
E16: Last forecast date | F16: =DATE(YEAR(F14)+F15,MONTH(F14),DAY(F14)) -> 2025-03-31 | G16: date
E19: Operation Start Date (midnight) | F19: 2021-03-31 | G19: date
E20: Operation Finish Date (midnight) | F20: 2025-03-31 | G20: date
E21: First Modelling Column Financial Year Number | F21: 2020 | G21: year
E22: Financial Year End Month Number | F22: 3 | G22: month #
A25: INNOVATION FUNDING INPUTS
D27: Allocated innovation competition fund price control revenue
E28: ANH - Allocated innovation funding - Nominal | G28: £m | H28: =SUM(K28:O28) -> 0
E29: HDD - Allocated innovation funding - Nominal | G29: £m | H29: =SUM(K29:O29) -> 0
E30: NES - Allocated innovation funding - Nominal | G30: £m | H30: 0
E31: NWT - Allocated innovation funding - Nominal | G31: £m | H31: 0
E32: SRN - Allocated innovation funding - Nominal | G32: £m | H32: 0
E33: SVE - Allocated innovation funding - Nominal | G33: £m | H33: 0
E34: SWB - Allocated innovation funding - Nominal | G34: £m | H34: 0
E35: TMS - Allocated innovation funding - Nominal | G35: £m | H35: 0
E36: WSH - Allocated innovation funding - Nominal | G36: £m | H36: 0
E37: WSX - Allocated innovation funding - Nominal | G37: £m | H37: 0
E38: YKY - Allocated innovation funding - Nominal | G38: £m | H38: 0
E39: AFW - Allocated innovation funding - Nominal | G39: £m | H39: 0
E40: BRL - Allocated innovation funding - Nominal | G40: £m | H40: 0
E41: PRT - Allocated innovation funding - Nominal | G41: £m | H41: 0
E42: SES - Allocated innovation funding - Nominal | G42: £m | H42: 0
E43: SEW - Allocated innovation funding - Nominal | G43: £m | H43: 0
E44: SSC - Allocated innovation funding - Nominal | G44: £m | H44: 0
D46: Total Funding transferred to innovation fund
E47: ANH - Total Funding transferred to innovation fund - Nominal | G47: £m | H47: =SUM(K47:O47) -> 0
E48: HDD - Total Funding transferred to innovation fund - Nominal | G48: £m | H48: =SUM(K48:O48) -> 0
E49: NES - Total Funding transferred to innovation fund - Nominal | G49: £m | H49: 0
E50: NWT - Total Funding transferred to innovation fund - Nominal | G50: £m | H50: 0
E51: SRN - Total Funding transferred to innovation fund - Nominal | G51: £m | H51: 0
E52: SVE - Total Funding transferred to innovation fund - Nominal | G52: £m | H52: 0
E53: SWB - Total Funding transferred to innovation fund - Nominal | G53: £m | H53: 0
E54: TMS - Total Funding transferred to innovation fund - Nominal | G54: £m | H54: 0
E55: WSH - Total Funding transferred to innovation fund - Nominal | G55: £m | H55: 0
E56: WSX - Total Funding transferred to innovation fund - Nominal | G56: £m | H56: 0
E57: YKY - Total Funding transferred to innovation fund - Nominal | G57: £m | H57: 0
E58: AFW - Total Funding transferred to innovation fund - Nominal | G58: £m | H58: 0
E59: BRL - Total Funding transferred to innovation fund - Nominal | G59: £m | H59: 0
E60: PRT - Total Funding transferred to innovation fund - Nominal | G60: £m | H60: 0
E61: SES - Total Funding transferred to innovation fund - Nominal | G61: £m | H61: 0
E62: SEW - Total Funding transferred to innovation fund - Nominal | G62: £m | H62: 0
E63: SSC - Total Funding transferred to innovation fund - Nominal | G63: £m | H63: 0
D65: Bids accepted and awarded funding for innovation competition
E66: ANH - Bids Accepted & Funding Awarded - Nominal | G66: £m | H66: =SUM(K66:O66) -> 0
E67: HDD - Bids Accepted & Funding Awarded - Nominal | G67: £m | H67: =SUM(K67:O67) -> 0
E68: NES - Bids Accepted & Funding Awarded - Nominal | G68: £m | H68: 0
E69: NWT - Bids Accepted & Funding Awarded - Nominal | G69: £m | H69: 0
E70: SRN - Bids Accepted & Funding Awarded - Nominal | G70: £m | H70: 0
E71: SVE - Bids Accepted & Funding Awarded - Nominal | G71: £m | H71: 0
E72: SWB - Bids Accepted & Funding Awarded - Nominal | G72: £m | H72: 0
E73: TMS - Bids Accepted & Funding Awarded - Nominal | G73: £m | H73: 0
E74: WSH - Bids Accepted & Funding Awarded - Nominal | G74: £m | H74: 0
E75: WSX - Bids Accepted & Funding Awarded - Nominal | G75: £m | H75: 0
E76: YKY - Bids Accepted & Funding Awarded - Nominal | G76: £m | H76: 0
E77: AFW - Bids Accepted & Funding Awarded - Nominal | G77: £m | H77: 0
E78: BRL - Bids Accepted & Funding Awarded - Nominal | G78: £m | H78: 0
E79: PRT - Bids Accepted & Funding Awarded - Nominal | G79: £m | H79: 0
E80: SES - Bids Accepted & Funding Awarded - Nominal | G80: £m | H80: 0
E81: SEW - Bids Accepted & Funding Awarded - Nominal | G81: £m | H81: 0
E82: SSC - Bids Accepted & Funding Awarded - Nominal | G82: £m | H82: 0
D84: Expenditure on innovation projects (exc. innovation activities funded through totex) to date
E85: ANH - Expenditure on innovation spend to date - Nominal | G85: £m | H85: =SUM(K85:O85) -> 0
E86: HDD - Expenditure on innovation spend to date - Nominal | G86: £m | H86: =SUM(K86:O86) -> 0
E87: NES - Expenditure on innovation spend to date - Nominal | G87: £m | H87: 0
E88: NWT - Expenditure on innovation spend to date - Nominal | G88: £m | H88: 0
E89: SRN - Expenditure on innovation spend to date - Nominal | G89: £m | H89: 0
E90: SVE - Expenditure on innovation spend to date - Nominal | G90: £m | H90: 0
E91: SWB - Expenditure on innovation spend to date - Nominal | G91: £m | H91: 0
E92: TMS - Expenditure on innovation spend to date - Nominal | G92: £m | H92: 0
E93: WSH - Expenditure on innovation spend to date - Nominal | G93: £m | H93: 0
E94: WSX - Expenditure on innovation spend to date - Nominal | G94: £m | H94: 0
E95: YKY - Expenditure on innovation spend to date - Nominal | G95: £m | H95: 0
E96: AFW - Expenditure on innovation spend to date - Nominal | G96: £m | H96: 0
E97: BRL - Expenditure on innovation spend to date - Nominal | G97: £m | H97: 0
E98: PRT - Expenditure on innovation spend to date - Nominal | G98: £m | H98: 0
E99: SES - Expenditure on innovation spend to date - Nominal | G99: £m | H99: 0
E100: SEW - Expenditure on innovation spend to date - Nominal | G100: £m | H100: 0
E101: SSC - Expenditure on innovation spend to date - Nominal | G101: £m | H101: 0
D103: Allowed future expenditure on innovation projects
E104: ANH - Allowed Future expenditure on innovation projects - Nominal | G104: £m | H104: =SUM(K104:O104) -> 0
E105: HDD - Allowed Future expenditure on innovation projects - Nominal | G105: £m | H105: =SUM(K105:O105) -> 0
E106: NES - Allowed Future expenditure on innovation projects - Nominal | G106: £m | H106: 0
E107: NWT - Allowed Future expenditure on innovation projects - Nominal | G107: £m | H107: 0
E108: SRN - Allowed Future expenditure on innovation projects - Nominal | G108: £m | H108: 0
E109: SVE - Allowed Future expenditure on innovation projects - Nominal | G109: £m | H109: 0
E110: SWB - Allowed Future expenditure on innovation projects - Nominal | G110: £m | H110: 0
E111: TMS - Allowed Future expenditure on innovation projects - Nominal | G111: £m | H111: 0
E112: WSH - Allowed Future expenditure on innovation projects - Nominal | G112: £m | H112: 0
E113: WSX - Allowed Future expenditure on innovation projects - Nominal | G113: £m | H113: 0
E114: YKY - Allowed Future expenditure on innovation projects - Nominal | G114: £m | H114: 0
E115: AFW - Allowed Future expenditure on innovation projects - Nominal | G115: £m | H115: 0
E116: BRL - Allowed Future expenditure on innovation projects - Nominal | G116: £m | H116: 0
E117: PRT - Allowed Future expenditure on innovation projects - Nominal | G117: £m | H117: 0
E118: SES - Allowed Future expenditure on innovation projects - Nominal | G118: £m | H118: 0
E119: SEW - Allowed Future expenditure on innovation projects - Nominal | G119: £m | H119: 0
E120: SSC - Allowed Future expenditure on innovation projects - Nominal | G120: £m | H120: 0
A123: FINANCING INPUTS
B125: Model Tolerance
E126: Financing cost index | G126: Index | K126: 4 | L126: 3 | M126: 2 | N126: 1 | O126: 0
E128: ANH - WACC | G128: %
E129: HDD - WACC | G129: %
E130: NES - WACC | G130: %
E131: NWT - WACC | G131: %
E132: SRN - WACC | G132: %
E133: SVE - WACC | G133: %
E134: SWB - WACC | G134: %
E135: TMS - WACC | G135: %
E136: WSH - WACC | G136: %
E137: WSX - WACC | G137: %
E138: YKY - WACC | G138: %
E139: AFW - WACC | G139: %
E140: BRL - WACC | G140: %
E141: PRT - WACC | G141: %
E142: SES - WACC | G142: %
E143: SEW - WACC | G143: %
E144: SSC - WACC | G144: %
A146: INDEXATION
D148: CPI(H) - base index 2017-18
E149: Consumer price index (including housing costs) - Consumer Price Index (with housing) for April | F149: 103.2 | G149: Index
E150: Consumer price index (including housing costs) - Consumer Price Index (with housing) for May | F150: 103.5 | G150: Index
E151: Consumer price index (including housing costs) - Consumer Price Index (with housing) for June | F151: 103.5 | G151: Index
E152: Consumer price index (including housing costs) - Consumer Price Index (with housing) for July | F152: 103.5 | G152: Index
E153: Consumer price index (including housing costs) - Consumer Price Index (with housing) for August | F153: 104 | G153: Index
E154: Consumer price index (including housing costs) - Consumer Price Index (with housing) for September | F154: 104.3 | G154: Index
E155: Consumer price index (including housing costs) - Consumer Price Index (with housing) for October | F155: 104.4 | G155: Index
E156: Consumer price index (including housing costs) - Consumer Price Index (with housing) for November | F156: 104.7 | G156: Index
E157: Consumer price index (including housing costs) - Consumer Price Index (with housing) for December | F157: 105 | G157: Index
E158: Consumer price index (including housing costs) - Consumer Price Index (with housing) for January | F158: 104.5 | G158: Index
E159: Consumer price index (including housing costs) - Consumer Price Index (with housing) for February | F159: 104.9 | G159: Index
E160: Consumer price index (including housing costs) - Consumer Price Index (with housing) for March | F160: 105.1 | G160: Index
D162: CPI(H) forecast periods
E163: Consumer price index (including housing costs) - Consumer Price Index (with housing) for April | G163: Index | J163: 107.6 | K163: 109.7033547 | L163: 111.8974218 | M163: 114.1726572 | N163: 116.570283 | O163: 119.018259 | P163: 121.3986242
E164: Consumer price index (including housing costs) - Consumer Price Index (with housing) for May | G164: Index | J164: 107.9 | K164: 109.8845387 | L164: 112.0822295 | M164: 114.3705617 | N164: 116.7723435 | O164: 119.2245627 | P164: 121.609054
E165: Consumer price index (including housing costs) - Consumer Price Index (with housing) for June | G165: Index | J165: 107.9 | K165: 110.066022 | L165: 112.2673424 | M165: 114.5688092 | N165: 116.9747542 | O165: 119.431224 | P165: 121.8198485
E166: Consumer price index (including housing costs) - Consumer Price Index (with housing) for July | G166: Index | J166: 108 | K166: 110.247805 | L166: 112.4527611 | M166: 114.7674004 | N166: 117.1775158 | O166: 119.6382436 | P166: 122.0310085
E167: Consumer price index (including housing costs) - Consumer Price Index (with housing) for August | G167: Index | J167: 108.3 | K167: 110.4298882 | L167: 112.638486 | M167: 114.9663357 | N167: 117.3806288 | O167: 119.845622 | P167: 122.2425344
E168: Consumer price index (including housing costs) - Consumer Price Index (with housing) for September | G168: Index | J168: 108.4699996 | K168: 110.6122721 | L168: 112.8245176 | M168: 115.165616 | N168: 117.5840939 | O168: 120.0533599 | P168: 122.4544271
E169: Consumer price index (including housing costs) - Consumer Price Index (with housing) for October | G169: Index | J169: 108.6402661 | K169: 110.7949573 | L169: 113.0108564 | M169: 115.3652416 | N169: 117.7879117 | O169: 120.2614578 | P169: 122.666687
E170: Consumer price index (including housing costs) - Consumer Price Index (with housing) for November | G170: Index | J170: 108.8107998 | K170: 110.9779442 | L170: 113.1975031 | M170: 115.5652133 | N170: 117.9920827 | O170: 120.4699165 | P170: 122.8793148
E171: Consumer price index (including housing costs) - Consumer Price Index (with housing) for December | G171: Index | J171: 108.9816012 | K171: 111.1612333 | L171: 113.3844579 | M171: 115.7655316 | N171: 118.1966077 | O171: 120.6787365 | P171: 123.0923112
E172: Consumer price index (including housing costs) - Consumer Price Index (with housing) for January | G172: Index | J172: 109.1615932 | K172: 111.3448251 | L172: 113.5809962 | M172: 115.9661971 | N172: 118.4014872 | O172: 120.8879184 | P172: 123.3056768
E173: Consumer price index (including housing costs) - Consumer Price Index (with housing) for February | G173: Index | J173: 109.3418825 | K173: 111.5287201 | L173: 113.7778751 | M173: 116.1672104 | N173: 118.6067218 | O173: 121.097463 | P173: 123.5194123
E174: Consumer price index (including housing costs) - Consumer Price Index (with housing) for March | G174: Index | J174: 109.5224695 | K174: 111.7129189 | L174: 113.9750952 | M174: 116.3685722 | N174: 118.8123122 | O174: 121.3073708 | P174: 123.7335182
A176: NON CHANGEABLE INPUTS
B178: Model Tolerance
E179: Model Check Tolerance Level | F179: 0.0001 | G179: tolerance
E181: Model Track Tolerance Level | F181: 0.001 | G181: tolerance
A183: END OF SHEET

Sheet Calc-->

Sheet Indexation
A1: =RIGHT(CELL("filename", $A$1), LEN(CELL("filename", $A$1)) - SEARCH("]", CELL("filename", $A$1))) -> Indexation
E2: =Time!E$22 -> Model Period BEG | J2: =Time!J$22 -> 2019-04-01 | K2: =Time!K$22 -> 2020-04-01 | L2: =Time!L$22 -> 2021-04-01 | M2: =Time!M$22 -> 2022-04-01 | N2: =Time!N$22 -> 2023-04-01 | O2: =Time!O$22 -> 2024-04-01 | P2: =Time!P$22 -> 2025-04-01
E3: =Time!E$23 -> Model Period END | F3: =Check!F$8 -> 0 | G3: Error chks | J3: =Time!J$23 -> 2020-03-31 | K3: =Time!K$23 -> 2021-03-31 | L3: =Time!L$23 -> 2022-03-31 | M3: =Time!M$23 -> 2023-03-31 | N3: =Time!N$23 -> 2024-03-31 | O3: =Time!O$23 -> 2025-03-31 | P3: =Time!P$23 -> 2026-03-31
E4: =Time!E$59 -> Pre Forecast vs Forecast | J4: =Time!J$59 -> Pre Fcst | K4: =Time!K$59 -> Forecast | L4: =Time!L$59 -> Forecast | M4: =Time!M$59 -> Forecast | N4: =Time!N$59 -> Forecast | O4: =Time!O$59 -> Forecast | P4: =Time!P$59 -> Post-Fcst
E5: =Time!E$101 -> Financial Year Ending | J5: =Time!J$101 -> 2020 | K5: =Time!K$101 -> 2021 | L5: =Time!L$101 -> 2022 | M5: =Time!M$101 -> 2023 | N5: =Time!N$101 -> 2024 | O5: =Time!O$101 -> 2025 | P5: =Time!P$101 -> 2026
E6: =Time!E$11 -> Model column counter | F6: Constant | G6: Unit | H6: Total | J6: =Time!J$11 -> 1 | K6: =Time!K$11 -> 2 | L6: =Time!L$11 -> 3 | M6: =Time!M$11 -> 4 | N6: =Time!N$11 -> 5 | O6: =Time!O$11 -> 6 | P6: =Time!P$11 -> 7
A8: CPIH INDEXATION
B10: Average CPI(H) - base index 2017-18
E11: =InpActive!E149 -> Consumer price index (including housing costs) - Consumer Price Index (with housing) for April | F11: =InpActive!F149 -> 103.2 | G11: =InpActive!G149 -> Index
E12: =InpActive!E150 -> Consumer price index (including housing costs) - Consumer Price Index (with housing) for May | F12: =InpActive!F150 -> 103.5 | G12: =InpActive!G150 -> Index
E13: =InpActive!E151 -> Consumer price index (including housing costs) - Consumer Price Index (with housing) for June | F13: =InpActive!F151 -> 103.5 | G13: =InpActive!G151 -> Index
E14: =InpActive!E152 -> Consumer price index (including housing costs) - Consumer Price Index (with housing) for July | F14: =InpActive!F152 -> 103.5 | G14: =InpActive!G152 -> Index
E15: =InpActive!E153 -> Consumer price index (including housing costs) - Consumer Price Index (with housing) for August | F15: =InpActive!F153 -> 104 | G15: =InpActive!G153 -> Index
E16: =InpActive!E154 -> Consumer price index (including housing costs) - Consumer Price Index (with housing) for September | F16: =InpActive!F154 -> 104.3 | G16: =InpActive!G154 -> Index
E17: =InpActive!E155 -> Consumer price index (including housing costs) - Consumer Price Index (with housing) for October | F17: =InpActive!F155 -> 104.4 | G17: =InpActive!G155 -> Index
E18: =InpActive!E156 -> Consumer price index (including housing costs) - Consumer Price Index (with housing) for November | F18: =InpActive!F156 -> 104.7 | G18: =InpActive!G156 -> Index
E19: =InpActive!E157 -> Consumer price index (including housing costs) - Consumer Price Index (with housing) for December | F19: =InpActive!F157 -> 105 | G19: =InpActive!G157 -> Index
E20: =InpActive!E158 -> Consumer price index (including housing costs) - Consumer Price Index (with housing) for January | F20: =InpActive!F158 -> 104.5 | G20: =InpActive!G158 -> Index
E21: =InpActive!E159 -> Consumer price index (including housing costs) - Consumer Price Index (with housing) for February | F21: =InpActive!F159 -> 104.9 | G21: =InpActive!G159 -> Index
E22: =InpActive!E160 -> Consumer price index (including housing costs) - Consumer Price Index (with housing) for March | F22: =InpActive!F160 -> 105.1 | G22: =InpActive!G160 -> Index
E23: CPIH 2017-18 FYA - Base Year | F23: =AVERAGE(F11:F22) -> 104.2166667 | G23: Index
B25: Average CPI(H) forecast periods
E26: =InpActive!E163 -> Consumer price index (including housing costs) - Consumer Price Index (with housing) for April | F26: =InpActive!F163 -> 0 | G26: =InpActive!G163 -> Index | H26: =InpActive!H163 -> 0 | I26: =InpActive!I163 -> 0 | J26: =InpActive!J163 -> 107.6 | K26: =InpActive!K163 -> 109.7033547 | L26: =InpActive!L163 -> 111.8974218 | M26: =InpActive!M163 -> 114.1726572 | N26: =InpActive!N163 -> 116.570283 | O26: =InpActive!O163 -> 119.018259 | P26: =InpActive!P163 -> 121.3986242
E27: =InpActive!E164 -> Consumer price index (including housing costs) - Consumer Price Index (with housing) for May | F27: =InpActive!F164 -> 0 | G27: =InpActive!G164 -> Index | H27: =InpActive!H164 -> 0 | I27: =InpActive!I164 -> 0 | J27: =InpActive!J164 -> 107.9 | K27: =InpActive!K164 -> 109.8845387 | L27: =InpActive!L164 -> 112.0822295 | M27: =InpActive!M164 -> 114.3705617 | N27: =InpActive!N164 -> 116.7723435 | O27: =InpActive!O164 -> 119.2245627 | P27: =InpActive!P164 -> 121.609054
E28: =InpActive!E165 -> Consumer price index (including housing costs) - Consumer Price Index (with housing) for June | F28: =InpActive!F165 -> 0 | G28: =InpActive!G165 -> Index | H28: =InpActive!H165 -> 0 | I28: =InpActive!I165 -> 0 | J28: =InpActive!J165 -> 107.9 | K28: =InpActive!K165 -> 110.066022 | L28: =InpActive!L165 -> 112.2673424 | M28: =InpActive!M165 -> 114.5688092 | N28: =InpActive!N165 -> 116.9747542 | O28: =InpActive!O165 -> 119.431224 | P28: =InpActive!P165 -> 121.8198485
E29: =InpActive!E166 -> Consumer price index (including housing costs) - Consumer Price Index (with housing) for July | F29: =InpActive!F166 -> 0 | G29: =InpActive!G166 -> Index | H29: =InpActive!H166 -> 0 | I29: =InpActive!I166 -> 0 | J29: =InpActive!J166 -> 108 | K29: =InpActive!K166 -> 110.247805 | L29: =InpActive!L166 -> 112.4527611 | M29: =InpActive!M166 -> 114.7674004 | N29: =InpActive!N166 -> 117.1775158 | O29: =InpActive!O166 -> 119.6382436 | P29: =InpActive!P166 -> 122.0310085
E30: =InpActive!E167 -> Consumer price index (including housing costs) - Consumer Price Index (with housing) for August | F30: =InpActive!F167 -> 0 | G30: =InpActive!G167 -> Index | H30: =InpActive!H167 -> 0 | I30: =InpActive!I167 -> 0 | J30: =InpActive!J167 -> 108.3 | K30: =InpActive!K167 -> 110.4298882 | L30: =InpActive!L167 -> 112.638486 | M30: =InpActive!M167 -> 114.9663357 | N30: =InpActive!N167 -> 117.3806288 | O30: =InpActive!O167 -> 119.845622 | P30: =InpActive!P167 -> 122.2425344
E31: =InpActive!E168 -> Consumer price index (including housing costs) - Consumer Price Index (with housing) for September | F31: =InpActive!F168 -> 0 | G31: =InpActive!G168 -> Index | H31: =InpActive!H168 -> 0 | I31: =InpActive!I168 -> 0 | J31: =InpActive!J168 -> 108.4699996 | K31: =InpActive!K168 -> 110.6122721 | L31: =InpActive!L168 -> 112.8245176 | M31: =InpActive!M168 -> 115.165616 | N31: =InpActive!N168 -> 117.5840939 | O31: =InpActive!O168 -> 120.0533599 | P31: =InpActive!P168 -> 122.4544271
E32: =InpActive!E169 -> Consumer price index (including housing costs) - Consumer Price Index (with housing) for October | F32: =InpActive!F169 -> 0 | G32: =InpActive!G169 -> Index | H32: =InpActive!H169 -> 0 | I32: =InpActive!I169 -> 0 | J32: =InpActive!J169 -> 108.6402661 | K32: =InpActive!K169 -> 110.7949573 | L32: =InpActive!L169 -> 113.0108564 | M32: =InpActive!M169 -> 115.3652416 | N32: =InpActive!N169 -> 117.7879117 | O32: =InpActive!O169 -> 120.2614578 | P32: =InpActive!P169 -> 122.666687
E33: =InpActive!E170 -> Consumer price index (including housing costs) - Consumer Price Index (with housing) for November | F33: =InpActive!F170 -> 0 | G33: =InpActive!G170 -> Index | H33: =InpActive!H170 -> 0 | I33: =InpActive!I170 -> 0 | J33: =InpActive!J170 -> 108.8107998 | K33: =InpActive!K170 -> 110.9779442 | L33: =InpActive!L170 -> 113.1975031 | M33: =InpActive!M170 -> 115.5652133 | N33: =InpActive!N170 -> 117.9920827 | O33: =InpActive!O170 -> 120.4699165 | P33: =InpActive!P170 -> 122.8793148
E34: =InpActive!E171 -> Consumer price index (including housing costs) - Consumer Price Index (with housing) for December | F34: =InpActive!F171 -> 0 | G34: =InpActive!G171 -> Index | H34: =InpActive!H171 -> 0 | I34: =InpActive!I171 -> 0 | J34: =InpActive!J171 -> 108.9816012 | K34: =InpActive!K171 -> 111.1612333 | L34: =InpActive!L171 -> 113.3844579 | M34: =InpActive!M171 -> 115.7655316 | N34: =InpActive!N171 -> 118.1966077 | O34: =InpActive!O171 -> 120.6787365 | P34: =InpActive!P171 -> 123.0923112
E35: =InpActive!E172 -> Consumer price index (including housing costs) - Consumer Price Index (with housing) for January | F35: =InpActive!F172 -> 0 | G35: =InpActive!G172 -> Index | H35: =InpActive!H172 -> 0 | I35: =InpActive!I172 -> 0 | J35: =InpActive!J172 -> 109.1615932 | K35: =InpActive!K172 -> 111.3448251 | L35: =InpActive!L172 -> 113.5809962 | M35: =InpActive!M172 -> 115.9661971 | N35: =InpActive!N172 -> 118.4014872 | O35: =InpActive!O172 -> 120.8879184 | P35: =InpActive!P172 -> 123.3056768
E36: =InpActive!E173 -> Consumer price index (including housing costs) - Consumer Price Index (with housing) for February | F36: =InpActive!F173 -> 0 | G36: =InpActive!G173 -> Index | H36: =InpActive!H173 -> 0 | I36: =InpActive!I173 -> 0 | J36: =InpActive!J173 -> 109.3418825 | K36: =InpActive!K173 -> 111.5287201 | L36: =InpActive!L173 -> 113.7778751 | M36: =InpActive!M173 -> 116.1672104 | N36: =InpActive!N173 -> 118.6067218 | O36: =InpActive!O173 -> 121.097463 | P36: =InpActive!P173 -> 123.5194123
E37: =InpActive!E174 -> Consumer price index (including housing costs) - Consumer Price Index (with housing) for March | F37: =InpActive!F174 -> 0 | G37: =InpActive!G174 -> Index | H37: =InpActive!H174 -> 0 | I37: =InpActive!I174 -> 0 | J37: =InpActive!J174 -> 109.5224695 | K37: =InpActive!K174 -> 111.7129189 | L37: =InpActive!L174 -> 113.9750952 | M37: =InpActive!M174 -> 116.3685722 | N37: =InpActive!N174 -> 118.8123122 | O37: =InpActive!O174 -> 121.3073708 | P37: =InpActive!P174 -> 123.7335182
E38: CPIH: Financial year average - indices | G38: Index | J38: =AVERAGE(J26:J37) -> 108.5523843 | K38: =AVERAGE(K26:K37) -> 110.7053733 | L38: =AVERAGE(L26:L37) -> 112.9241285 | M38: 115.2674455 | N38: 117.6880619 | O38: 120.1595112 | P38: =AVERAGE(P26:P37) -> 122.5627014
B40: CPI(H): Fin year average - conversion from outurn to base year 2017-18 average
E42: =E$23 -> CPIH 2017-18 FYA - Base Year | F42: =F$23 -> 104.2166667 | G42: Index
E43: =E$38 -> CPIH: Financial year average - indices | F43: =F$38 -> 0 | G43: =G$38 -> Index | H43: =H$38 -> 0 | J43: =J$38 -> 108.5523843 | K43: 110.7053733 | L43: 112.9241285 | M43: 115.2674455 | N43: 117.6880619 | O43: 120.1595112 | P43: 122.5627014
E44: CPI(H): Fin year average - conversion from outturn to base year 2017-18 average - CALC | G44: % | J44: =IF($F42 = 0, 0, J43 / $F42) -> 1.04160292 | K44: =IF($F42 = 0, 0, K43 / $F42) -> 1.062261698 | L44: =IF($F42 = 0, 0, L43 / $F42) -> 1.083551529 | M44: 1.106036579 | N44: 1.129263348 | O44: 1.152977878 | P44: =IF($F42 = 0, 0, P43 / $F42) -> 1.176037436
A47: End of sheet

Sheet Time
A1: =RIGHT(CELL("filename", $A$1), LEN(CELL("filename", $A$1)) - SEARCH("]", CELL("filename", $A$1))) -> Time
E2: =Time!E$22 -> Model Period BEG | J2: =Time!J$22 -> 2019-04-01 | K2: =Time!K$22 -> 2020-04-01 | L2: =Time!L$22 -> 2021-04-01 | M2: =Time!M$22 -> 2022-04-01 | N2: =Time!N$22 -> 2023-04-01 | O2: =Time!O$22 -> 2024-04-01 | P2: =Time!P$22 -> 2025-04-01
E3: =Time!E$23 -> Model Period END | F3: =Check!F$8 -> 0 | G3: Error chks | J3: =Time!J$23 -> 2020-03-31 | K3: =Time!K$23 -> 2021-03-31 | L3: =Time!L$23 -> 2022-03-31 | M3: =Time!M$23 -> 2023-03-31 | N3: =Time!N$23 -> 2024-03-31 | O3: =Time!O$23 -> 2025-03-31 | P3: =Time!P$23 -> 2026-03-31
E4: =Time!E$59 -> Pre Forecast vs Forecast | J4: =Time!J$59 -> Pre Fcst | K4: =Time!K$59 -> Forecast | L4: =Time!L$59 -> Forecast | M4: =Time!M$59 -> Forecast | N4: =Time!N$59 -> Forecast | O4: =Time!O$59 -> Forecast | P4: =Time!P$59 -> Post-Fcst
E5: =Time!E$101 -> Financial Year Ending | J5: =Time!J$101 -> 2020 | K5: =Time!K$101 -> 2021 | L5: =Time!L$101 -> 2022 | M5: =Time!M$101 -> 2023 | N5: =Time!N$101 -> 2024 | O5: =Time!O$101 -> 2025 | P5: =Time!P$101 -> 2026
E6: =Time!E$11 -> Model column counter | F6: Constant | G6: Unit | H6: Total | J6: =Time!J$11 -> 1 | K6: =Time!K$11 -> 2 | L6: =Time!L$11 -> 3 | M6: =Time!M$11 -> 4 | N6: =Time!N$11 -> 5 | O6: =Time!O$11 -> 6 | P6: =Time!P$11 -> 7
A8: MODEL PERIOD
B10: Model Column Counter
E11: Model column counter | G11: counter | J11: =I11 + 1 -> 1 | K11: =J11 + 1 -> 2 | L11: =K11 + 1 -> 3 | M11: 4 | N11: 5 | O11: 6 | P11: =O11 + 1 -> 7
E12: Model Column Total | F12: =MAX(J11:P11) -> 7 | G12: column
E14: =E$11 -> Model column counter | F14: 0 | G14: counter | H14: 0 | I14: 0 | J14: 1 | K14: 2 | L14: 3 | M14: 4 | N14: 5 | O14: 6 | P14: 7
E15: First model column flag | G15: flag | H15: =SUM(J15:P15) -> 1 | J15: =IF( J14 = 1, 1, 0) -> 1 | K15: =IF( K14 = 1, 1, 0) -> 0 | L15: 0 | M15: 0 | N15: 0 | O15: 0 | P15: 0
E17: =InpActive!E$10 -> First date of time ruler | F17: =InpActive!F$10 -> 2019-04-01 | G17: =InpActive!G$10 -> date
E18: First model period BEG | F18: =DATE(YEAR(F17), MONTH(F17), 1) -> 2019-04-01 | G18: month
E20: =E$18 -> First model period BEG | F20: =F$18 -> 2019-04-01 | G20: =G$18 -> month
E21: =E$15 -> First model column flag | F21: 0 | G21: flag | H21: 1 | I21: 0 | J21: 1 | K21: 0 | L21: 0 | M21: 0 | N21: 0 | O21: 0 | P21: 0
E22: Model Period BEG | G22: date | J22: =IF( J21 = 1, $F20, I23 + 1) -> 2019-04-01 | K22: =IF( K21 = 1, $F20, J23 + 1) -> 2020-04-01 | L22: 2021-04-01 | M22: 2022-04-01 | N22: 2023-04-01 | O22: 2024-04-01 | P22: =IF( P21 = 1, $F20, O23 + 1) -> 2025-04-01
E23: Model Period END | G23: date | J23: =DATE(YEAR(J22), MONTH(J22) + 12, DAY(1) - 1) -> 2020-03-31 | K23: 2021-03-31 | L23: 2022-03-31 | M23: 2023-03-31 | N23: 2024-03-31 | O23: 2025-03-31 | P23: 2026-03-31
E25: =E$23 -> Model Period END | F25: 00:00:00 | G25: date | H25: 00:00:00 | I25: 00:00:00 | J25: 2020-03-31 | K25: 2021-03-31 | L25: 2022-03-31 | M25: 2023-03-31 | N25: 2024-03-31 | O25: 2025-03-31 | P25: 2026-03-31
D26: less | E26: =E$22 -> Model Period BEG | F26: 00:00:00 | G26: date | H26: 00:00:00 | I26: 00:00:00 | J26: 2019-04-01 | K26: 2020-04-01 | L26: 2021-04-01 | M26: 2022-04-01 | N26: 2023-04-01 | O26: 2024-04-01 | P26: 2025-04-01
E27: Days in Model Period | G27: days | H27: =SUM(J27:P27) -> 2557 | J27: =J25 - J26 + 1 -> 366 | K27: 365 | L27: 365 | M27: 365 | N27: 366 | O27: 365 | P27: 365
A30: PRE FORECAST PERIOD
E32: =InpActive!E$12 -> Last Pre Forecast Date | F32: =InpActive!F$12 -> 2020-03-31 | G32: =InpActive!G$12 -> date
E33: =E$23 -> Model Period END | F33: 00:00:00 | G33: date | H33: 00:00:00 | I33: 00:00:00 | J33: 2020-03-31 | K33: 2021-03-31 | L33: 2022-03-31 | M33: 2023-03-31 | N33: 2024-03-31 | O33: 2025-03-31 | P33: 2026-03-31
E34: Last Pre Forecast Flag | G34: flag | H34: =SUM(J34:P34) -> 1 | J34: =IF(J33 = $F32, 1, 0) -> 1 | K34: 0 | L34: 0 | M34: 0 | N34: 0 | O34: 0 | P34: 0
E35: Pre Forecast Period Flag | G35: flag | H35: =SUM(J35:P35) -> 1 | J35: =IF($F32 >= J33, 1, 0) -> 1 | K35: =IF($F32 >= K33, 1, 0) -> 0 | L35: 0 | M35: 0 | N35: 0 | O35: 0 | P35: 0
E36: Pre Forecast Period Total | F36: =SUM(J35:P35) -> 1 | G36: columns
E38: =InpActive!E$14 -> Acquisition date (midnight) | F38: =InpActive!F$14 -> 2020-03-31 | G38: =InpActive!G$14 -> date
E39: =E$23 -> Model Period END | F39: 00:00:00 | G39: date | H39: 00:00:00 | I39: 00:00:00 | J39: 2020-03-31 | K39: 2021-03-31 | L39: 2022-03-31 | M39: 2023-03-31 | N39: 2024-03-31 | O39: 2025-03-31 | P39: 2026-03-31
E40: Acquisition / initial balance date flag | G40: flag | H40: =SUM(J40:P40) -> 1 | J40: =IF(J39 = $F38, 1, 0) -> 1 | K40: 0 | L40: 0 | M40: 0 | N40: 0 | O40: 0 | P40: 0
A43: FORECAST PERIOD
E45: =E$34 -> Last Pre Forecast Flag | F45: 0 | G45: flag | H45: 1 | I45: 0 | J45: 1 | K45: 0 | L45: 0 | M45: 0 | N45: 0 | O45: 0 | P45: 0
E46: 1st Forecast Period Flag | G46: flag | H46: =SUM(J46:P46) -> 1 | J46: =I45 -> 0 | K46: =J45 -> 1 | L46: 0 | M46: 0 | N46: 0 | O46: 0 | P46: =O45 -> 0
E48: =InpActive!E$16 -> Last forecast date | F48: =InpActive!F$16 -> 2025-03-31 | G48: =InpActive!G$16 -> date
E49: =E$23 -> Model Period END | F49: 00:00:00 | G49: date | H49: 00:00:00 | I49: 00:00:00 | J49: 2020-03-31 | K49: 2021-03-31 | L49: 2022-03-31 | M49: 2023-03-31 | N49: 2024-03-31 | O49: 2025-03-31 | P49: 2026-03-31
E50: Last Forecast Period Flag | G50: flag | H50: =SUM(J50:P50) -> 1 | J50: =IF(AND($F48 > I49, $F48 <= J49), 1, 0) -> 0 | K50: =IF(AND($F48 > J49, $F48 <= K49), 1, 0) -> 0 | L50: 0 | M50: 0 | N50: 0 | O50: 1 | P50: =IF(AND($F48 > O49, $F48 <= P49), 1, 0) -> 0
E52: =E$46 -> 1st Forecast Period Flag | F52: 0 | G52: flag | H52: 1 | I52: 0 | J52: 0 | K52: 1 | L52: 0 | M52: 0 | N52: 0 | O52: 0 | P52: 0
E53: =E$50 -> Last Forecast Period Flag | F53: 0 | G53: flag | H53: 1 | I53: 0 | J53: 0 | K53: 0 | L53: 0 | M53: 0 | N53: 0 | O53: 1 | P53: 0
E54: Forecast Period Flag | G54: flag | H54: =SUM(J54:P54) -> 5 | J54: =J52 - I53 + I54 -> 0 | K54: =K52 - J53 + J54 -> 1 | L54: 1 | M54: 1 | N54: 1 | O54: 1 | P54: =P52 - O53 + O54 -> 0
E55: Forecast Period Total | F55: =SUM(J54:P54) -> 5 | G55: columns
E57: =E$35 -> Pre Forecast Period Flag | F57: 0 | G57: flag | H57: 1 | I57: 0 | J57: 1 | K57: 0 | L57: 0 | M57: 0 | N57: 0 | O57: 0 | P57: 0
E58: =E$54 -> Forecast Period Flag | F58: 0 | G58: flag | H58: 5 | I58: 0 | J58: 0 | K58: 1 | L58: 1 | M58: 1 | N58: 1 | O58: 1 | P58: 0
E59: Pre Forecast vs Forecast | G59: flag | J59: =IF(J57 = 1, "Pre Fcst", IF(J58 = 1, "Forecast", "Post-Fcst")) -> Pre Fcst | K59: Forecast | L59: Forecast | M59: Forecast | N59: Forecast | O59: Forecast | P59: Post-Fcst
A62: POST FORECAST PERIOD
E64: =E$50 -> Last Forecast Period Flag | F64: 0 | G64: flag | H64: 1 | I64: 0 | J64: 0 | K64: 0 | L64: 0 | M64: 0 | N64: 0 | O64: 1 | P64: 0
E65: 1st Post Last Forecast Period Flag | G65: flag | H65: =SUM(J65:P65) -> 1 | J65: =I64 -> 0 | K65: =J64 -> 0 | L65: 0 | M65: 0 | N65: 0 | O65: 0 | P65: =O64 -> 1
E67: =E$65 -> 1st Post Last Forecast Period Flag | F67: 0 | G67: flag | H67: 1 | I67: 0 | J67: 0 | K67: 0 | L67: 0 | M67: 0 | N67: 0 | O67: 0 | P67: 1
E68: Post Forecast Period Flag | G68: flag | H68: =SUM(J68:P68) -> 1 | J68: =I68 + J67 -> 0 | K68: =J68 + K67 -> 0 | L68: 0 | M68: 0 | N68: 0 | O68: 0 | P68: =O68 + P67 -> 1
E69: Post Forecast Period Total | F69: =SUM(J68:P68) -> 1 | G69: columns
A72: MODELLING PERIOD CHECK
E74: =E$12 -> Model Column Total | F74: =F$12 -> 7 | G74: =G$12 -> column
D75: less | E75: =E$36 -> Pre Forecast Period Total | F75: =F$36 -> 1 | G75: =G$36 -> columns
D76: less | E76: =E$55 -> Forecast Period Total | F76: =F$55 -> 5 | G76: =G$55 -> columns
D77: less | E77: =E$69 -> Post Forecast Period Total | F77: =F$69 -> 1 | G77: =G$69 -> columns
E78: Modelling Period Check | F78: =IF(F74 - SUM(F75:F77) <> 0, 1, 0) -> 0 | G78: check
A81: PARTIAL PERIOD FLAG (PPF)
C82: This is an example of a part period flag. It is not currently used.
B83: Operation Partial Period Flag (PPF)
E84: =E$18 -> First model period BEG | F84: =F$18 -> 2019-04-01 | G84: =G$18 -> month
E85: =InpActive!E$20 -> Operation Finish Date (midnight) | F85: =InpActive!F$20 -> 2025-03-31 | G85: =InpActive!G$20 -> date
E86: =E$22 -> Model Period BEG | F86: 00:00:00 | G86: date | H86: 00:00:00 | I86: 00:00:00 | J86: 2019-04-01 | K86: 2020-04-01 | L86: 2021-04-01 | M86: 2022-04-01 | N86: 2023-04-01 | O86: 2024-04-01 | P86: 2025-04-01
E87: =E$23 -> Model Period END | F87: 00:00:00 | G87: date | H87: 00:00:00 | I87: 00:00:00 | J87: 2020-03-31 | K87: 2021-03-31 | L87: 2022-03-31 | M87: 2023-03-31 | N87: 2024-03-31 | O87: 2025-03-31 | P87: 2026-03-31
E88: Days in Operation Period | G88: days | H88: =SUM(J88:P88) -> 2192 | J88: =MAX(0, (MIN($F85, J87) - MAX($F84, J86) + 1)) -> 366 | K88: 365 | L88: 365 | M88: 365 | N88: 366 | O88: 365 | P88: 0
E90: =E$88 -> Days in Operation Period | F90: 0 | G90: days | H90: 2192 | I90: 0 | J90: 366 | K90: 365 | L90: 365 | M90: 365 | N90: 366 | O90: 365 | P90: 0
E91: =E$27 -> Days in Model Period | F91: 0 | G91: days | H91: 2557 | I91: 0 | J91: 366 | K91: 365 | L91: 365 | M91: 365 | N91: 366 | O91: 365 | P91: 365
E92: Operation Period PPF | G92: factor | H92: =SUM(J92:P92) -> 6 | J92: =J90 / J91 -> 1 | K92: 1 | L92: 1 | M92: 1 | N92: 1 | O92: 1 | P92: 0
A95: FINANCIAL YEAR
E97: =InpActive!E21 -> First Modelling Column Financial Year Number | F97: =InpActive!F21 -> 2020 | G97: =InpActive!G21 -> year
E98: =InpActive!E22 -> Financial Year End Month Number | F98: =InpActive!F22 -> 3 | G98: =InpActive!G22 -> month #
E99: =E$23 -> Model Period END | F99: 00:00:00 | G99: date | H99: 00:00:00 | I99: 00:00:00 | J99: 2020-03-31 | K99: 2021-03-31 | L99: 2022-03-31 | M99: 2023-03-31 | N99: 2024-03-31 | O99: 2025-03-31 | P99: 2026-03-31
E100: =E$15 -> First model column flag | F100: 0 | G100: flag | H100: 1 | I100: 0 | J100: 1 | K100: 0 | L100: 0 | M100: 0 | N100: 0 | O100: 0 | P100: 0
E101: Financial Year Ending | G101: year # | J101: =IF(J100 = 1, $F97, IF(J99 > (DATE(I101, $F98 + 1, 1) - 1), I101 + 1, I101)) -> 2020 | K101: =IF(K100 = 1, $F97, IF(K99 > (DATE(J101, $F98 + 1, 1) - 1), J101 + 1, J101)) -> 2021 | L101: 2022 | M101: 2023 | N101: 2024 | O101: 2025 | P101: =IF(P100 = 1, $F97, IF(P99 > (DATE(O101, $F98 + 1, 1) - 1), O101 + 1, O101)) -> 2026
A104: END OF SHEET

Sheet Innovation funding return
A1: =RIGHT(CELL("filename", $A$1), LEN(CELL("filename", $A$1)) - SEARCH("]", CELL("filename", $A$1))) -> Innovation funding return
E2: =Time!E$22 -> Model Period BEG | J2: =Time!J$22 -> 2019-04-01 | K2: =Time!K$22 -> 2020-04-01 | L2: =Time!L$22 -> 2021-04-01 | M2: =Time!M$22 -> 2022-04-01 | N2: =Time!N$22 -> 2023-04-01 | O2: =Time!O$22 -> 2024-04-01 | P2: =Time!P$22 -> 2025-04-01
E3: =Time!E$23 -> Model Period END | F3: =Check!F$8 -> 0 | G3: Error chks | J3: =Time!J$23 -> 2020-03-31 | K3: =Time!K$23 -> 2021-03-31 | L3: =Time!L$23 -> 2022-03-31 | M3: =Time!M$23 -> 2023-03-31 | N3: =Time!N$23 -> 2024-03-31 | O3: =Time!O$23 -> 2025-03-31 | P3: =Time!P$23 -> 2026-03-31
E4: =Time!E$59 -> Pre Forecast vs Forecast | J4: =Time!J$59 -> Pre Fcst | K4: =Time!K$59 -> Forecast | L4: =Time!L$59 -> Forecast | M4: =Time!M$59 -> Forecast | N4: =Time!N$59 -> Forecast | O4: =Time!O$59 -> Forecast | P4: =Time!P$59 -> Post-Fcst
E5: =Time!E$101 -> Financial Year Ending | J5: =Time!J$101 -> 2020 | K5: =Time!K$101 -> 2021 | L5: =Time!L$101 -> 2022 | M5: =Time!M$101 -> 2023 | N5: =Time!N$101 -> 2024 | O5: =Time!O$101 -> 2025 | P5: =Time!P$101 -> 2026
E6: =Time!E$11 -> Model column counter | F6: Constant | G6: Unit | H6: Total | J6: =Time!J$11 -> 1 | K6: =Time!K$11 -> 2 | L6: =Time!L$11 -> 3 | M6: =Time!M$11 -> 4 | N6: =Time!N$11 -> 5 | O6: =Time!O$11 -> 6 | P6: =Time!P$11 -> 7
D8: Allocated Funding - Nominal
E9: =InpActive!E28 -> ANH - Allocated innovation funding - Nominal | F9: =InpActive!F28 -> 0 | G9: =InpActive!G28 -> £m | H9: =InpActive!H28 -> 0 | I9: =InpActive!I28 -> 0 | J9: =InpActive!J28 -> 0 | K9: =InpActive!K28 -> 0 | L9: =InpActive!L28 -> 0 | M9: =InpActive!M28 -> 0 | N9: =InpActive!N28 -> 0 | O9: =InpActive!O28 -> 0 | P9: =InpActive!P28 -> 0
E10: =InpActive!E29 -> HDD - Allocated innovation funding - Nominal | F10: =InpActive!F29 -> 0 | G10: =InpActive!G29 -> £m | H10: =InpActive!H29 -> 0 | I10: =InpActive!I29 -> 0 | J10: =InpActive!J29 -> 0 | K10: =InpActive!K29 -> 0 | L10: =InpActive!L29 -> 0 | M10: =InpActive!M29 -> 0 | N10: =InpActive!N29 -> 0 | O10: =InpActive!O29 -> 0 | P10: =InpActive!P29 -> 0
E11: =InpActive!E30 -> NES - Allocated innovation funding - Nominal | F11: =InpActive!F30 -> 0 | G11: =InpActive!G30 -> £m | H11: =InpActive!H30 -> 0 | I11: =InpActive!I30 -> 0 | J11: =InpActive!J30 -> 0 | K11: =InpActive!K30 -> 0 | L11: =InpActive!L30 -> 0 | M11: =InpActive!M30 -> 0 | N11: =InpActive!N30 -> 0 | O11: =InpActive!O30 -> 0 | P11: =InpActive!P30 -> 0
E12: =InpActive!E31 -> NWT - Allocated innovation funding - Nominal | F12: =InpActive!F31 -> 0 | G12: =InpActive!G31 -> £m | H12: =InpActive!H31 -> 0 | I12: =InpActive!I31 -> 0 | J12: =InpActive!J31 -> 0 | K12: =InpActive!K31 -> 0 | L12: =InpActive!L31 -> 0 | M12: =InpActive!M31 -> 0 | N12: =InpActive!N31 -> 0 | O12: =InpActive!O31 -> 0 | P12: =InpActive!P31 -> 0
E13: =InpActive!E32 -> SRN - Allocated innovation funding - Nominal | F13: =InpActive!F32 -> 0 | G13: =InpActive!G32 -> £m | H13: =InpActive!H32 -> 0 | I13: =InpActive!I32 -> 0 | J13: =InpActive!J32 -> 0 | K13: =InpActive!K32 -> 0 | L13: =InpActive!L32 -> 0 | M13: =InpActive!M32 -> 0 | N13: =InpActive!N32 -> 0 | O13: =InpActive!O32 -> 0 | P13: =InpActive!P32 -> 0
E14: =InpActive!E33 -> SVE - Allocated innovation funding - Nominal | F14: =InpActive!F33 -> 0 | G14: =InpActive!G33 -> £m | H14: =InpActive!H33 -> 0 | I14: =InpActive!I33 -> 0 | J14: =InpActive!J33 -> 0 | K14: =InpActive!K33 -> 0 | L14: =InpActive!L33 -> 0 | M14: =InpActive!M33 -> 0 | N14: =InpActive!N33 -> 0 | O14: =InpActive!O33 -> 0 | P14: =InpActive!P33 -> 0
E15: =InpActive!E34 -> SWB - Allocated innovation funding - Nominal | F15: =InpActive!F34 -> 0 | G15: =InpActive!G34 -> £m | H15: =InpActive!H34 -> 0 | I15: =InpActive!I34 -> 0 | J15: =InpActive!J34 -> 0 | K15: =InpActive!K34 -> 0 | L15: =InpActive!L34 -> 0 | M15: =InpActive!M34 -> 0 | N15: =InpActive!N34 -> 0 | O15: =InpActive!O34 -> 0 | P15: =InpActive!P34 -> 0
E16: =InpActive!E35 -> TMS - Allocated innovation funding - Nominal | F16: =InpActive!F35 -> 0 | G16: =InpActive!G35 -> £m | H16: =InpActive!H35 -> 0 | I16: =InpActive!I35 -> 0 | J16: =InpActive!J35 -> 0 | K16: =InpActive!K35 -> 0 | L16: =InpActive!L35 -> 0 | M16: =InpActive!M35 -> 0 | N16: =InpActive!N35 -> 0 | O16: =InpActive!O35 -> 0 | P16: =InpActive!P35 -> 0
E17: =InpActive!E36 -> WSH - Allocated innovation funding - Nominal | F17: =InpActive!F36 -> 0 | G17: =InpActive!G36 -> £m | H17: =InpActive!H36 -> 0 | I17: =InpActive!I36 -> 0 | J17: =InpActive!J36 -> 0 | K17: =InpActive!K36 -> 0 | L17: =InpActive!L36 -> 0 | M17: =InpActive!M36 -> 0 | N17: =InpActive!N36 -> 0 | O17: =InpActive!O36 -> 0 | P17: =InpActive!P36 -> 0
E18: =InpActive!E37 -> WSX - Allocated innovation funding - Nominal | F18: =InpActive!F37 -> 0 | G18: =InpActive!G37 -> £m | H18: =InpActive!H37 -> 0 | I18: =InpActive!I37 -> 0 | J18: =InpActive!J37 -> 0 | K18: =InpActive!K37 -> 0 | L18: =InpActive!L37 -> 0 | M18: =InpActive!M37 -> 0 | N18: =InpActive!N37 -> 0 | O18: =InpActive!O37 -> 0 | P18: =InpActive!P37 -> 0
E19: =InpActive!E38 -> YKY - Allocated innovation funding - Nominal | F19: =InpActive!F38 -> 0 | G19: =InpActive!G38 -> £m | H19: =InpActive!H38 -> 0 | I19: =InpActive!I38 -> 0 | J19: =InpActive!J38 -> 0 | K19: =InpActive!K38 -> 0 | L19: =InpActive!L38 -> 0 | M19: =InpActive!M38 -> 0 | N19: =InpActive!N38 -> 0 | O19: =InpActive!O38 -> 0 | P19: =InpActive!P38 -> 0
E20: =InpActive!E39 -> AFW - Allocated innovation funding - Nominal | F20: =InpActive!F39 -> 0 | G20: =InpActive!G39 -> £m | H20: =InpActive!H39 -> 0 | I20: =InpActive!I39 -> 0 | J20: =InpActive!J39 -> 0 | K20: =InpActive!K39 -> 0 | L20: =InpActive!L39 -> 0 | M20: =InpActive!M39 -> 0 | N20: =InpActive!N39 -> 0 | O20: =InpActive!O39 -> 0 | P20: =InpActive!P39 -> 0
E21: =InpActive!E40 -> BRL - Allocated innovation funding - Nominal | F21: =InpActive!F40 -> 0 | G21: =InpActive!G40 -> £m | H21: =InpActive!H40 -> 0 | I21: =InpActive!I40 -> 0 | J21: =InpActive!J40 -> 0 | K21: =InpActive!K40 -> 0 | L21: =InpActive!L40 -> 0 | M21: =InpActive!M40 -> 0 | N21: =InpActive!N40 -> 0 | O21: =InpActive!O40 -> 0 | P21: =InpActive!P40 -> 0
E22: =InpActive!E41 -> PRT - Allocated innovation funding - Nominal | F22: =InpActive!F41 -> 0 | G22: =InpActive!G41 -> £m | H22: =InpActive!H41 -> 0 | I22: =InpActive!I41 -> 0 | J22: =InpActive!J41 -> 0 | K22: =InpActive!K41 -> 0 | L22: =InpActive!L41 -> 0 | M22: =InpActive!M41 -> 0 | N22: =InpActive!N41 -> 0 | O22: =InpActive!O41 -> 0 | P22: =InpActive!P41 -> 0
E23: =InpActive!E42 -> SES - Allocated innovation funding - Nominal | F23: =InpActive!F42 -> 0 | G23: =InpActive!G42 -> £m | H23: =InpActive!H42 -> 0 | I23: =InpActive!I42 -> 0 | J23: =InpActive!J42 -> 0 | K23: =InpActive!K42 -> 0 | L23: =InpActive!L42 -> 0 | M23: =InpActive!M42 -> 0 | N23: =InpActive!N42 -> 0 | O23: =InpActive!O42 -> 0 | P23: =InpActive!P42 -> 0
E24: =InpActive!E43 -> SEW - Allocated innovation funding - Nominal | F24: =InpActive!F43 -> 0 | G24: =InpActive!G43 -> £m | H24: =InpActive!H43 -> 0 | I24: =InpActive!I43 -> 0 | J24: =InpActive!J43 -> 0 | K24: =InpActive!K43 -> 0 | L24: =InpActive!L43 -> 0 | M24: =InpActive!M43 -> 0 | N24: =InpActive!N43 -> 0 | O24: =InpActive!O43 -> 0 | P24: =InpActive!P43 -> 0
E25: =InpActive!E44 -> SSC - Allocated innovation funding - Nominal | F25: =InpActive!F44 -> 0 | G25: =InpActive!G44 -> £m | H25: =InpActive!H44 -> 0 | I25: =InpActive!I44 -> 0 | J25: =InpActive!J44 -> 0 | K25: =InpActive!K44 -> 0 | L25: =InpActive!L44 -> 0 | M25: =InpActive!M44 -> 0 | N25: =InpActive!N44 -> 0 | O25: =InpActive!O44 -> 0 | P25: =InpActive!P44 -> 0
E26: Total Allocated Funding - Nominal | G26: £m | H26: =SUM(J26:P26) -> 0 | J26: =SUM(J9:J25) -> 0 | K26: 0 | L26: 0 | M26: 0 | N26: 0 | O26: 0 | P26: 0
D28: Proportion of Funding allocated
E29: ANH - Proportion of Funding allocated | F29: =IF( $H$26 = 0, 0,#REF! / $H$26) -> 0 | G29: %
E30: HDD - Proportion of Funding allocated | F30: =IF( $H$26 = 0, 0,#REF! / $H$26) -> 0 | G30: %
E31: NES - Proportion of Funding allocated | F31: =IF( $H$26 = 0, 0,#REF! / $H$26) -> 0 | G31: %
E32: NWT - Proportion of Funding allocated | F32: =IF( $H$26 = 0, 0,#REF! / $H$26) -> 0 | G32: %
E33: SRN - Proportion of Funding allocated | F33: =IF( $H$26 = 0, 0,#REF! / $H$26) -> 0 | G33: %
E34: SVE - Proportion of Funding allocated | F34: =IF( $H$26 = 0, 0,#REF! / $H$26) -> 0 | G34: %
E35: SWB - Proportion of Funding allocated | F35: =IF( $H$26 = 0, 0,#REF! / $H$26) -> 0 | G35: %
E36: TMS - Proportion of Funding allocated | F36: =IF( $H$26 = 0, 0,#REF! / $H$26) -> 0 | G36: %
E37: WSH - Proportion of Funding allocated | F37: =IF( $H$26 = 0, 0,#REF! / $H$26) -> 0 | G37: %
E38: WSX - Proportion of Funding allocated | F38: =IF( $H$26 = 0, 0,#REF! / $H$26) -> 0 | G38: %
E39: YKY - Proportion of Funding allocated | F39: =IF( $H$26 = 0, 0,#REF! / $H$26) -> 0 | G39: %
E40: AFW - Proportion of Funding allocated | F40: =IF( $H$26 = 0, 0,#REF! / $H$26) -> 0 | G40: %
E41: BRL - Proportion of Funding allocated | F41: =IF( $H$26 = 0, 0,#REF! / $H$26) -> 0 | G41: %
E42: PRT - Proportion of Funding allocated | F42: =IF( $H$26 = 0, 0,#REF! / $H$26) -> 0 | G42: %
E43: SES - Proportion of Funding allocated | F43: =IF( $H$26 = 0, 0,#REF! / $H$26) -> 0 | G43: %
E44: SEW - Proportion of Funding allocated | F44: =IF( $H$26 = 0, 0,#REF! / $H$26) -> 0 | G44: %
E45: SSC - Proportion of Funding allocated | F45: =IF( $H$26 = 0, 0,#REF! / $H$26) -> 0 | G45: %
E46: Total Allocated | F46: =SUM(F29:F45) -> 0 | G46: %
D48: Total Funding transferred to innovation fund
E49: =InpActive!E47 -> ANH - Total Funding transferred to innovation fund - Nominal | F49: =InpActive!F47 -> 0 | G49: =InpActive!G47 -> £m | H49: =InpActive!H47 -> 0 | I49: =InpActive!I47 -> 0 | J49: =InpActive!J47 -> 0 | K49: =InpActive!K47 -> 0 | L49: =InpActive!L47 -> 0 | M49: =InpActive!M47 -> 0 | N49: =InpActive!N47 -> 0 | O49: =InpActive!O47 -> 0 | P49: =InpActive!P47 -> 0
E50: =InpActive!E48 -> HDD - Total Funding transferred to innovation fund - Nominal | F50: =InpActive!F48 -> 0 | G50: =InpActive!G48 -> £m | H50: =InpActive!H48 -> 0 | I50: =InpActive!I48 -> 0 | J50: =InpActive!J48 -> 0 | K50: =InpActive!K48 -> 0 | L50: =InpActive!L48 -> 0 | M50: =InpActive!M48 -> 0 | N50: =InpActive!N48 -> 0 | O50: =InpActive!O48 -> 0 | P50: =InpActive!P48 -> 0
E51: =InpActive!E49 -> NES - Total Funding transferred to innovation fund - Nominal | F51: =InpActive!F49 -> 0 | G51: =InpActive!G49 -> £m | H51: =InpActive!H49 -> 0 | I51: =InpActive!I49 -> 0 | J51: =InpActive!J49 -> 0 | K51: =InpActive!K49 -> 0 | L51: =InpActive!L49 -> 0 | M51: =InpActive!M49 -> 0 | N51: =InpActive!N49 -> 0 | O51: =InpActive!O49 -> 0 | P51: =InpActive!P49 -> 0
E52: =InpActive!E50 -> NWT - Total Funding transferred to innovation fund - Nominal | F52: =InpActive!F50 -> 0 | G52: =InpActive!G50 -> £m | H52: =InpActive!H50 -> 0 | I52: =InpActive!I50 -> 0 | J52: =InpActive!J50 -> 0 | K52: =InpActive!K50 -> 0 | L52: =InpActive!L50 -> 0 | M52: =InpActive!M50 -> 0 | N52: =InpActive!N50 -> 0 | O52: =InpActive!O50 -> 0 | P52: =InpActive!P50 -> 0
E53: =InpActive!E51 -> SRN - Total Funding transferred to innovation fund - Nominal | F53: =InpActive!F51 -> 0 | G53: =InpActive!G51 -> £m | H53: =InpActive!H51 -> 0 | I53: =InpActive!I51 -> 0 | J53: =InpActive!J51 -> 0 | K53: =InpActive!K51 -> 0 | L53: =InpActive!L51 -> 0 | M53: =InpActive!M51 -> 0 | N53: =InpActive!N51 -> 0 | O53: =InpActive!O51 -> 0 | P53: =InpActive!P51 -> 0
E54: =InpActive!E52 -> SVE - Total Funding transferred to innovation fund - Nominal | F54: =InpActive!F52 -> 0 | G54: =InpActive!G52 -> £m | H54: =InpActive!H52 -> 0 | I54: =InpActive!I52 -> 0 | J54: =InpActive!J52 -> 0 | K54: =InpActive!K52 -> 0 | L54: =InpActive!L52 -> 0 | M54: =InpActive!M52 -> 0 | N54: =InpActive!N52 -> 0 | O54: =InpActive!O52 -> 0 | P54: =InpActive!P52 -> 0
E55: =InpActive!E53 -> SWB - Total Funding transferred to innovation fund - Nominal | F55: =InpActive!F53 -> 0 | G55: =InpActive!G53 -> £m | H55: =InpActive!H53 -> 0 | I55: =InpActive!I53 -> 0 | J55: =InpActive!J53 -> 0 | K55: =InpActive!K53 -> 0 | L55: =InpActive!L53 -> 0 | M55: =InpActive!M53 -> 0 | N55: =InpActive!N53 -> 0 | O55: =InpActive!O53 -> 0 | P55: =InpActive!P53 -> 0
E56: =InpActive!E54 -> TMS - Total Funding transferred to innovation fund - Nominal | F56: =InpActive!F54 -> 0 | G56: =InpActive!G54 -> £m | H56: =InpActive!H54 -> 0 | I56: =InpActive!I54 -> 0 | J56: =InpActive!J54 -> 0 | K56: =InpActive!K54 -> 0 | L56: =InpActive!L54 -> 0 | M56: =InpActive!M54 -> 0 | N56: =InpActive!N54 -> 0 | O56: =InpActive!O54 -> 0 | P56: =InpActive!P54 -> 0
E57: =InpActive!E55 -> WSH - Total Funding transferred to innovation fund - Nominal | F57: =InpActive!F55 -> 0 | G57: =InpActive!G55 -> £m | H57: =InpActive!H55 -> 0 | I57: =InpActive!I55 -> 0 | J57: =InpActive!J55 -> 0 | K57: =InpActive!K55 -> 0 | L57: =InpActive!L55 -> 0 | M57: =InpActive!M55 -> 0 | N57: =InpActive!N55 -> 0 | O57: =InpActive!O55 -> 0 | P57: =InpActive!P55 -> 0
E58: =InpActive!E56 -> WSX - Total Funding transferred to innovation fund - Nominal | F58: =InpActive!F56 -> 0 | G58: =InpActive!G56 -> £m | H58: =InpActive!H56 -> 0 | I58: =InpActive!I56 -> 0 | J58: =InpActive!J56 -> 0 | K58: =InpActive!K56 -> 0 | L58: =InpActive!L56 -> 0 | M58: =InpActive!M56 -> 0 | N58: =InpActive!N56 -> 0 | O58: =InpActive!O56 -> 0 | P58: =InpActive!P56 -> 0
E59: =InpActive!E57 -> YKY - Total Funding transferred to innovation fund - Nominal | F59: =InpActive!F57 -> 0 | G59: =InpActive!G57 -> £m | H59: =InpActive!H57 -> 0 | I59: =InpActive!I57 -> 0 | J59: =InpActive!J57 -> 0 | K59: =InpActive!K57 -> 0 | L59: =InpActive!L57 -> 0 | M59: =InpActive!M57 -> 0 | N59: =InpActive!N57 -> 0 | O59: =InpActive!O57 -> 0 | P59: =InpActive!P57 -> 0
E60: =InpActive!E58 -> AFW - Total Funding transferred to innovation fund - Nominal | F60: =InpActive!F58 -> 0 | G60: =InpActive!G58 -> £m | H60: =InpActive!H58 -> 0 | I60: =InpActive!I58 -> 0 | J60: =InpActive!J58 -> 0 | K60: =InpActive!K58 -> 0 | L60: =InpActive!L58 -> 0 | M60: =InpActive!M58 -> 0 | N60: =InpActive!N58 -> 0 | O60: =InpActive!O58 -> 0 | P60: =InpActive!P58 -> 0
E61: =InpActive!E59 -> BRL - Total Funding transferred to innovation fund - Nominal | F61: =InpActive!F59 -> 0 | G61: =InpActive!G59 -> £m | H61: =InpActive!H59 -> 0 | I61: =InpActive!I59 -> 0 | J61: =InpActive!J59 -> 0 | K61: =InpActive!K59 -> 0 | L61: =InpActive!L59 -> 0 | M61: =InpActive!M59 -> 0 | N61: =InpActive!N59 -> 0 | O61: =InpActive!O59 -> 0 | P61: =InpActive!P59 -> 0
E62: =InpActive!E60 -> PRT - Total Funding transferred to innovation fund - Nominal | F62: =InpActive!F60 -> 0 | G62: =InpActive!G60 -> £m | H62: =InpActive!H60 -> 0 | I62: =InpActive!I60 -> 0 | J62: =InpActive!J60 -> 0 | K62: =InpActive!K60 -> 0 | L62: =InpActive!L60 -> 0 | M62: =InpActive!M60 -> 0 | N62: =InpActive!N60 -> 0 | O62: =InpActive!O60 -> 0 | P62: =InpActive!P60 -> 0
E63: =InpActive!E61 -> SES - Total Funding transferred to innovation fund - Nominal | F63: =InpActive!F61 -> 0 | G63: =InpActive!G61 -> £m | H63: =InpActive!H61 -> 0 | I63: =InpActive!I61 -> 0 | J63: =InpActive!J61 -> 0 | K63: =InpActive!K61 -> 0 | L63: =InpActive!L61 -> 0 | M63: =InpActive!M61 -> 0 | N63: =InpActive!N61 -> 0 | O63: =InpActive!O61 -> 0 | P63: =InpActive!P61 -> 0
E64: =InpActive!E62 -> SEW - Total Funding transferred to innovation fund - Nominal | F64: =InpActive!F62 -> 0 | G64: =InpActive!G62 -> £m | H64: =InpActive!H62 -> 0 | I64: =InpActive!I62 -> 0 | J64: =InpActive!J62 -> 0 | K64: =InpActive!K62 -> 0 | L64: =InpActive!L62 -> 0 | M64: =InpActive!M62 -> 0 | N64: =InpActive!N62 -> 0 | O64: =InpActive!O62 -> 0 | P64: =InpActive!P62 -> 0
E65: =InpActive!E63 -> SSC - Total Funding transferred to innovation fund - Nominal | F65: =InpActive!F63 -> 0 | G65: =InpActive!G63 -> £m | H65: =InpActive!H63 -> 0 | I65: =InpActive!I63 -> 0 | J65: =InpActive!J63 -> 0 | K65: =InpActive!K63 -> 0 | L65: =InpActive!L63 -> 0 | M65: =InpActive!M63 -> 0 | N65: =InpActive!N63 -> 0 | O65: =InpActive!O63 -> 0 | P65: =InpActive!P63 -> 0
E66: Total Transferred - Nominal | G66: £m | H66: =SUM(J66:P66) -> 0 | J66: =SUM(J49:J65) -> 0 | K66: =SUM(K49:K65) -> 0 | L66: =SUM(L49:L65) -> 0 | M66: =SUM(M49:M65) -> 0 | N66: =SUM(N49:N65) -> 0 | O66: =SUM(O49:O65) -> 0 | P66: =SUM(P49:P65) -> 0
D68: Bids Accepted
E69: =InpActive!E66 -> ANH - Bids Accepted & Funding Awarded - Nominal | F69: =InpActive!F66 -> 0 | G69: =InpActive!G66 -> £m | H69: =InpActive!H66 -> 0 | I69: =InpActive!I66 -> 0 | J69: =InpActive!J66 -> 0 | K69: =InpActive!K66 -> 0 | L69: =InpActive!L66 -> 0 | M69: =InpActive!M66 -> 0 | N69: =InpActive!N66 -> 0 | O69: =InpActive!O66 -> 0 | P69: =InpActive!P66 -> 0
E70: =InpActive!E67 -> HDD - Bids Accepted & Funding Awarded - Nominal | F70: =InpActive!F67 -> 0 | G70: =InpActive!G67 -> £m | H70: =InpActive!H67 -> 0 | I70: =InpActive!I67 -> 0 | J70: =InpActive!J67 -> 0 | K70: =InpActive!K67 -> 0 | L70: =InpActive!L67 -> 0 | M70: =InpActive!M67 -> 0 | N70: =InpActive!N67 -> 0 | O70: =InpActive!O67 -> 0 | P70: =InpActive!P67 -> 0
E71: =InpActive!E68 -> NES - Bids Accepted & Funding Awarded - Nominal | F71: =InpActive!F68 -> 0 | G71: =InpActive!G68 -> £m | H71: =InpActive!H68 -> 0 | I71: =InpActive!I68 -> 0 | J71: =InpActive!J68 -> 0 | K71: =InpActive!K68 -> 0 | L71: =InpActive!L68 -> 0 | M71: =InpActive!M68 -> 0 | N71: =InpActive!N68 -> 0 | O71: =InpActive!O68 -> 0 | P71: =InpActive!P68 -> 0
E72: =InpActive!E69 -> NWT - Bids Accepted & Funding Awarded - Nominal | F72: =InpActive!F69 -> 0 | G72: =InpActive!G69 -> £m | H72: =InpActive!H69 -> 0 | I72: =InpActive!I69 -> 0 | J72: =InpActive!J69 -> 0 | K72: =InpActive!K69 -> 0 | L72: =InpActive!L69 -> 0 | M72: =InpActive!M69 -> 0 | N72: =InpActive!N69 -> 0 | O72: =InpActive!O69 -> 0 | P72: =InpActive!P69 -> 0
E73: =InpActive!E70 -> SRN - Bids Accepted & Funding Awarded - Nominal | F73: =InpActive!F70 -> 0 | G73: =InpActive!G70 -> £m | H73: =InpActive!H70 -> 0 | I73: =InpActive!I70 -> 0 | J73: =InpActive!J70 -> 0 | K73: =InpActive!K70 -> 0 | L73: =InpActive!L70 -> 0 | M73: =InpActive!M70 -> 0 | N73: =InpActive!N70 -> 0 | O73: =InpActive!O70 -> 0 | P73: =InpActive!P70 -> 0
E74: =InpActive!E71 -> SVE - Bids Accepted & Funding Awarded - Nominal | F74: =InpActive!F71 -> 0 | G74: =InpActive!G71 -> £m | H74: =InpActive!H71 -> 0 | I74: =InpActive!I71 -> 0 | J74: =InpActive!J71 -> 0 | K74: =InpActive!K71 -> 0 | L74: =InpActive!L71 -> 0 | M74: =InpActive!M71 -> 0 | N74: =InpActive!N71 -> 0 | O74: =InpActive!O71 -> 0 | P74: =InpActive!P71 -> 0
E75: =InpActive!E72 -> SWB - Bids Accepted & Funding Awarded - Nominal | F75: =InpActive!F72 -> 0 | G75: =InpActive!G72 -> £m | H75: =InpActive!H72 -> 0 | I75: =InpActive!I72 -> 0 | J75: =InpActive!J72 -> 0 | K75: =InpActive!K72 -> 0 | L75: =InpActive!L72 -> 0 | M75: =InpActive!M72 -> 0 | N75: =InpActive!N72 -> 0 | O75: =InpActive!O72 -> 0 | P75: =InpActive!P72 -> 0
E76: =InpActive!E73 -> TMS - Bids Accepted & Funding Awarded - Nominal | F76: =InpActive!F73 -> 0 | G76: =InpActive!G73 -> £m | H76: =InpActive!H73 -> 0 | I76: =InpActive!I73 -> 0 | J76: =InpActive!J73 -> 0 | K76: =InpActive!K73 -> 0 | L76: =InpActive!L73 -> 0 | M76: =InpActive!M73 -> 0 | N76: =InpActive!N73 -> 0 | O76: =InpActive!O73 -> 0 | P76: =InpActive!P73 -> 0
E77: =InpActive!E74 -> WSH - Bids Accepted & Funding Awarded - Nominal | F77: =InpActive!F74 -> 0 | G77: =InpActive!G74 -> £m | H77: =InpActive!H74 -> 0 | I77: =InpActive!I74 -> 0 | J77: =InpActive!J74 -> 0 | K77: =InpActive!K74 -> 0 | L77: =InpActive!L74 -> 0 | M77: =InpActive!M74 -> 0 | N77: =InpActive!N74 -> 0 | O77: =InpActive!O74 -> 0 | P77: =InpActive!P74 -> 0
E78: =InpActive!E75 -> WSX - Bids Accepted & Funding Awarded - Nominal | F78: =InpActive!F75 -> 0 | G78: =InpActive!G75 -> £m | H78: =InpActive!H75 -> 0 | I78: =InpActive!I75 -> 0 | J78: =InpActive!J75 -> 0 | K78: =InpActive!K75 -> 0 | L78: =InpActive!L75 -> 0 | M78: =InpActive!M75 -> 0 | N78: =InpActive!N75 -> 0 | O78: =InpActive!O75 -> 0 | P78: =InpActive!P75 -> 0
E79: =InpActive!E76 -> YKY - Bids Accepted & Funding Awarded - Nominal | F79: =InpActive!F76 -> 0 | G79: =InpActive!G76 -> £m | H79: =InpActive!H76 -> 0 | I79: =InpActive!I76 -> 0 | J79: =InpActive!J76 -> 0 | K79: =InpActive!K76 -> 0 | L79: =InpActive!L76 -> 0 | M79: =InpActive!M76 -> 0 | N79: =InpActive!N76 -> 0 | O79: =InpActive!O76 -> 0 | P79: =InpActive!P76 -> 0
E80: =InpActive!E77 -> AFW - Bids Accepted & Funding Awarded - Nominal | F80: =InpActive!F77 -> 0 | G80: =InpActive!G77 -> £m | H80: =InpActive!H77 -> 0 | I80: =InpActive!I77 -> 0 | J80: =InpActive!J77 -> 0 | K80: =InpActive!K77 -> 0 | L80: =InpActive!L77 -> 0 | M80: =InpActive!M77 -> 0 | N80: =InpActive!N77 -> 0 | O80: =InpActive!O77 -> 0 | P80: =InpActive!P77 -> 0
E81: =InpActive!E78 -> BRL - Bids Accepted & Funding Awarded - Nominal | F81: =InpActive!F78 -> 0 | G81: =InpActive!G78 -> £m | H81: =InpActive!H78 -> 0 | I81: =InpActive!I78 -> 0 | J81: =InpActive!J78 -> 0 | K81: =InpActive!K78 -> 0 | L81: =InpActive!L78 -> 0 | M81: =InpActive!M78 -> 0 | N81: =InpActive!N78 -> 0 | O81: =InpActive!O78 -> 0 | P81: =InpActive!P78 -> 0
E82: =InpActive!E79 -> PRT - Bids Accepted & Funding Awarded - Nominal | F82: =InpActive!F79 -> 0 | G82: =InpActive!G79 -> £m | H82: =InpActive!H79 -> 0 | I82: =InpActive!I79 -> 0 | J82: =InpActive!J79 -> 0 | K82: =InpActive!K79 -> 0 | L82: =InpActive!L79 -> 0 | M82: =InpActive!M79 -> 0 | N82: =InpActive!N79 -> 0 | O82: =InpActive!O79 -> 0 | P82: =InpActive!P79 -> 0
E83: =InpActive!E80 -> SES - Bids Accepted & Funding Awarded - Nominal | F83: =InpActive!F80 -> 0 | G83: =InpActive!G80 -> £m | H83: =InpActive!H80 -> 0 | I83: =InpActive!I80 -> 0 | J83: =InpActive!J80 -> 0 | K83: =InpActive!K80 -> 0 | L83: =InpActive!L80 -> 0 | M83: =InpActive!M80 -> 0 | N83: =InpActive!N80 -> 0 | O83: =InpActive!O80 -> 0 | P83: =InpActive!P80 -> 0
E84: =InpActive!E81 -> SEW - Bids Accepted & Funding Awarded - Nominal | F84: =InpActive!F81 -> 0 | G84: =InpActive!G81 -> £m | H84: =InpActive!H81 -> 0 | I84: =InpActive!I81 -> 0 | J84: =InpActive!J81 -> 0 | K84: =InpActive!K81 -> 0 | L84: =InpActive!L81 -> 0 | M84: =InpActive!M81 -> 0 | N84: =InpActive!N81 -> 0 | O84: =InpActive!O81 -> 0 | P84: =InpActive!P81 -> 0
E85: =InpActive!E82 -> SSC - Bids Accepted & Funding Awarded - Nominal | F85: =InpActive!F82 -> 0 | G85: =InpActive!G82 -> £m | H85: =InpActive!H82 -> 0 | I85: =InpActive!I82 -> 0 | J85: =InpActive!J82 -> 0 | K85: =InpActive!K82 -> 0 | L85: =InpActive!L82 -> 0 | M85: =InpActive!M82 -> 0 | N85: =InpActive!N82 -> 0 | O85: =InpActive!O82 -> 0 | P85: =InpActive!P82 -> 0
E86: Total Bids accepted - Nominal | G86: £m | H86: =SUM(J86:P86) -> 0 | J86: =SUM(J69:J85) -> 0 | K86: =SUM(K69:K85) -> 0 | L86: =SUM(L69:L85) -> 0 | M86: =SUM(M69:M85) -> 0 | N86: =SUM(N69:N85) -> 0 | O86: =SUM(O69:O85) -> 0 | P86: =SUM(P69:P85) -> 0
D88: Total project spend to date
E89: =InpActive!E85 -> ANH - Expenditure on innovation spend to date - Nominal | F89: =InpActive!F85 -> 0 | G89: =InpActive!G85 -> £m | H89: =InpActive!H85 -> 0 | I89: =InpActive!I85 -> 0 | J89: =InpActive!J85 -> 0 | K89: =InpActive!K85 -> 0 | L89: =InpActive!L85 -> 0 | M89: =InpActive!M85 -> 0 | N89: =InpActive!N85 -> 0 | O89: =InpActive!O85 -> 0 | P89: =InpActive!P85 -> 0
E90: =InpActive!E86 -> HDD - Expenditure on innovation spend to date - Nominal | F90: =InpActive!F86 -> 0 | G90: =InpActive!G86 -> £m | H90: =InpActive!H86 -> 0 | I90: =InpActive!I86 -> 0 | J90: =InpActive!J86 -> 0 | K90: =InpActive!K86 -> 0 | L90: =InpActive!L86 -> 0 | M90: =InpActive!M86 -> 0 | N90: =InpActive!N86 -> 0 | O90: =InpActive!O86 -> 0 | P90: =InpActive!P86 -> 0
E91: =InpActive!E87 -> NES - Expenditure on innovation spend to date - Nominal | F91: =InpActive!F87 -> 0 | G91: =InpActive!G87 -> £m | H91: =InpActive!H87 -> 0 | I91: =InpActive!I87 -> 0 | J91: =InpActive!J87 -> 0 | K91: =InpActive!K87 -> 0 | L91: =InpActive!L87 -> 0 | M91: =InpActive!M87 -> 0 | N91: =InpActive!N87 -> 0 | O91: =InpActive!O87 -> 0 | P91: =InpActive!P87 -> 0
E92: =InpActive!E88 -> NWT - Expenditure on innovation spend to date - Nominal | F92: =InpActive!F88 -> 0 | G92: =InpActive!G88 -> £m | H92: =InpActive!H88 -> 0 | I92: =InpActive!I88 -> 0 | J92: =InpActive!J88 -> 0 | K92: =InpActive!K88 -> 0 | L92: =InpActive!L88 -> 0 | M92: =InpActive!M88 -> 0 | N92: =InpActive!N88 -> 0 | O92: =InpActive!O88 -> 0 | P92: =InpActive!P88 -> 0
E93: =InpActive!E89 -> SRN - Expenditure on innovation spend to date - Nominal | F93: =InpActive!F89 -> 0 | G93: =InpActive!G89 -> £m | H93: =InpActive!H89 -> 0 | I93: =InpActive!I89 -> 0 | J93: =InpActive!J89 -> 0 | K93: =InpActive!K89 -> 0 | L93: =InpActive!L89 -> 0 | M93: =InpActive!M89 -> 0 | N93: =InpActive!N89 -> 0 | O93: =InpActive!O89 -> 0 | P93: =InpActive!P89 -> 0
E94: =InpActive!E90 -> SVE - Expenditure on innovation spend to date - Nominal | F94: =InpActive!F90 -> 0 | G94: =InpActive!G90 -> £m | H94: =InpActive!H90 -> 0 | I94: =InpActive!I90 -> 0 | J94: =InpActive!J90 -> 0 | K94: =InpActive!K90 -> 0 | L94: =InpActive!L90 -> 0 | M94: =InpActive!M90 -> 0 | N94: =InpActive!N90 -> 0 | O94: =InpActive!O90 -> 0 | P94: =InpActive!P90 -> 0
E95: =InpActive!E91 -> SWB - Expenditure on innovation spend to date - Nominal | F95: =InpActive!F91 -> 0 | G95: =InpActive!G91 -> £m | H95: =InpActive!H91 -> 0 | I95: =InpActive!I91 -> 0 | J95: =InpActive!J91 -> 0 | K95: =InpActive!K91 -> 0 | L95: =InpActive!L91 -> 0 | M95: =InpActive!M91 -> 0 | N95: =InpActive!N91 -> 0 | O95: =InpActive!O91 -> 0 | P95: =InpActive!P91 -> 0
E96: =InpActive!E92 -> TMS - Expenditure on innovation spend to date - Nominal | F96: =InpActive!F92 -> 0 | G96: =InpActive!G92 -> £m | H96: =InpActive!H92 -> 0 | I96: =InpActive!I92 -> 0 | J96: =InpActive!J92 -> 0 | K96: =InpActive!K92 -> 0 | L96: =InpActive!L92 -> 0 | M96: =InpActive!M92 -> 0 | N96: =InpActive!N92 -> 0 | O96: =InpActive!O92 -> 0 | P96: =InpActive!P92 -> 0
E97: =InpActive!E93 -> WSH - Expenditure on innovation spend to date - Nominal | F97: =InpActive!F93 -> 0 | G97: =InpActive!G93 -> £m | H97: =InpActive!H93 -> 0 | I97: =InpActive!I93 -> 0 | J97: =InpActive!J93 -> 0 | K97: =InpActive!K93 -> 0 | L97: =InpActive!L93 -> 0 | M97: =InpActive!M93 -> 0 | N97: =InpActive!N93 -> 0 | O97: =InpActive!O93 -> 0 | P97: =InpActive!P93 -> 0
E98: =InpActive!E94 -> WSX - Expenditure on innovation spend to date - Nominal | F98: =InpActive!F94 -> 0 | G98: =InpActive!G94 -> £m | H98: =InpActive!H94 -> 0 | I98: =InpActive!I94 -> 0 | J98: =InpActive!J94 -> 0 | K98: =InpActive!K94 -> 0 | L98: =InpActive!L94 -> 0 | M98: =InpActive!M94 -> 0 | N98: =InpActive!N94 -> 0 | O98: =InpActive!O94 -> 0 | P98: =InpActive!P94 -> 0
E99: =InpActive!E95 -> YKY - Expenditure on innovation spend to date - Nominal | F99: =InpActive!F95 -> 0 | G99: =InpActive!G95 -> £m | H99: =InpActive!H95 -> 0 | I99: =InpActive!I95 -> 0 | J99: =InpActive!J95 -> 0 | K99: =InpActive!K95 -> 0 | L99: =InpActive!L95 -> 0 | M99: =InpActive!M95 -> 0 | N99: =InpActive!N95 -> 0 | O99: =InpActive!O95 -> 0 | P99: =InpActive!P95 -> 0
E100: =InpActive!E96 -> AFW - Expenditure on innovation spend to date - Nominal | F100: =InpActive!F96 -> 0 | G100: =InpActive!G96 -> £m | H100: =InpActive!H96 -> 0 | I100: =InpActive!I96 -> 0 | J100: =InpActive!J96 -> 0 | K100: =InpActive!K96 -> 0 | L100: =InpActive!L96 -> 0 | M100: =InpActive!M96 -> 0 | N100: =InpActive!N96 -> 0 | O100: =InpActive!O96 -> 0 | P100: =InpActive!P96 -> 0
E101: =InpActive!E97 -> BRL - Expenditure on innovation spend to date - Nominal | F101: =InpActive!F97 -> 0 | G101: =InpActive!G97 -> £m | H101: =InpActive!H97 -> 0 | I101: =InpActive!I97 -> 0 | J101: =InpActive!J97 -> 0 | K101: =InpActive!K97 -> 0 | L101: =InpActive!L97 -> 0 | M101: =InpActive!M97 -> 0 | N101: =InpActive!N97 -> 0 | O101: =InpActive!O97 -> 0 | P101: =InpActive!P97 -> 0
E102: =InpActive!E98 -> PRT - Expenditure on innovation spend to date - Nominal | F102: =InpActive!F98 -> 0 | G102: =InpActive!G98 -> £m | H102: =InpActive!H98 -> 0 | I102: =InpActive!I98 -> 0 | J102: =InpActive!J98 -> 0 | K102: =InpActive!K98 -> 0 | L102: =InpActive!L98 -> 0 | M102: =InpActive!M98 -> 0 | N102: =InpActive!N98 -> 0 | O102: =InpActive!O98 -> 0 | P102: =InpActive!P98 -> 0
E103: =InpActive!E99 -> SES - Expenditure on innovation spend to date - Nominal | F103: =InpActive!F99 -> 0 | G103: =InpActive!G99 -> £m | H103: =InpActive!H99 -> 0 | I103: =InpActive!I99 -> 0 | J103: =InpActive!J99 -> 0 | K103: =InpActive!K99 -> 0 | L103: =InpActive!L99 -> 0 | M103: =InpActive!M99 -> 0 | N103: =InpActive!N99 -> 0 | O103: =InpActive!O99 -> 0 | P103: =InpActive!P99 -> 0
E104: =InpActive!E100 -> SEW - Expenditure on innovation spend to date - Nominal | F104: =InpActive!F100 -> 0 | G104: =InpActive!G100 -> £m | H104: =InpActive!H100 -> 0 | I104: =InpActive!I100 -> 0 | J104: =InpActive!J100 -> 0 | K104: =InpActive!K100 -> 0 | L104: =InpActive!L100 -> 0 | M104: =InpActive!M100 -> 0 | N104: =InpActive!N100 -> 0 | O104: =InpActive!O100 -> 0 | P104: =InpActive!P100 -> 0
E105: =InpActive!E101 -> SSC - Expenditure on innovation spend to date - Nominal | F105: =InpActive!F101 -> 0 | G105: =InpActive!G101 -> £m | H105: =InpActive!H101 -> 0 | I105: =InpActive!I101 -> 0 | J105: =InpActive!J101 -> 0 | K105: =InpActive!K101 -> 0 | L105: =InpActive!L101 -> 0 | M105: =InpActive!M101 -> 0 | N105: =InpActive!N101 -> 0 | O105: =InpActive!O101 -> 0 | P105: =InpActive!P101 -> 0
E106: Total project spend - Nominal | G106: £m | H106: =SUM(J106:P106) -> 0 | J106: =SUM(J89:J105) -> 0 | K106: =SUM(K89:K105) -> 0 | L106: =SUM(L89:L105) -> 0 | M106: =SUM(M89:M105) -> 0 | N106: =SUM(N89:N105) -> 0 | O106: =SUM(O89:O105) -> 0 | P106: =SUM(P89:P105) -> 0
D108: Allowed Future expenditure
E109: =InpActive!E104 -> ANH - Allowed Future expenditure on innovation projects - Nominal | F109: =InpActive!F104 -> 0 | G109: =InpActive!G104 -> £m | H109: =InpActive!H104 -> 0 | I109: =InpActive!I104 -> 0 | J109: =InpActive!J104 -> 0 | K109: =InpActive!K104 -> 0 | L109: =InpActive!L104 -> 0 | M109: =InpActive!M104 -> 0 | N109: =InpActive!N104 -> 0 | O109: =InpActive!O104 -> 0 | P109: =InpActive!P104 -> 0
E110: =InpActive!E105 -> HDD - Allowed Future expenditure on innovation projects - Nominal | F110: =InpActive!F105 -> 0 | G110: =InpActive!G105 -> £m | H110: =InpActive!H105 -> 0 | I110: =InpActive!I105 -> 0 | J110: =InpActive!J105 -> 0 | K110: =InpActive!K105 -> 0 | L110: =InpActive!L105 -> 0 | M110: =InpActive!M105 -> 0 | N110: =InpActive!N105 -> 0 | O110: =InpActive!O105 -> 0 | P110: =InpActive!P105 -> 0
E111: =InpActive!E106 -> NES - Allowed Future expenditure on innovation projects - Nominal | F111: =InpActive!F106 -> 0 | G111: =InpActive!G106 -> £m | H111: =InpActive!H106 -> 0 | I111: =InpActive!I106 -> 0 | J111: =InpActive!J106 -> 0 | K111: =InpActive!K106 -> 0 | L111: =InpActive!L106 -> 0 | M111: =InpActive!M106 -> 0 | N111: =InpActive!N106 -> 0 | O111: =InpActive!O106 -> 0 | P111: =InpActive!P106 -> 0
E112: =InpActive!E107 -> NWT - Allowed Future expenditure on innovation projects - Nominal | F112: =InpActive!F107 -> 0 | G112: =InpActive!G107 -> £m | H112: =InpActive!H107 -> 0 | I112: =InpActive!I107 -> 0 | J112: =InpActive!J107 -> 0 | K112: =InpActive!K107 -> 0 | L112: =InpActive!L107 -> 0 | M112: =InpActive!M107 -> 0 | N112: =InpActive!N107 -> 0 | O112: =InpActive!O107 -> 0 | P112: =InpActive!P107 -> 0
E113: =InpActive!E108 -> SRN - Allowed Future expenditure on innovation projects - Nominal | F113: =InpActive!F108 -> 0 | G113: =InpActive!G108 -> £m | H113: =InpActive!H108 -> 0 | I113: =InpActive!I108 -> 0 | J113: =InpActive!J108 -> 0 | K113: =InpActive!K108 -> 0 | L113: =InpActive!L108 -> 0 | M113: =InpActive!M108 -> 0 | N113: =InpActive!N108 -> 0 | O113: =InpActive!O108 -> 0 | P113: =InpActive!P108 -> 0
E114: =InpActive!E109 -> SVE - Allowed Future expenditure on innovation projects - Nominal | F114: =InpActive!F109 -> 0 | G114: =InpActive!G109 -> £m | H114: =InpActive!H109 -> 0 | I114: =InpActive!I109 -> 0 | J114: =InpActive!J109 -> 0 | K114: =InpActive!K109 -> 0 | L114: =InpActive!L109 -> 0 | M114: =InpActive!M109 -> 0 | N114: =InpActive!N109 -> 0 | O114: =InpActive!O109 -> 0 | P114: =InpActive!P109 -> 0
E115: =InpActive!E110 -> SWB - Allowed Future expenditure on innovation projects - Nominal | F115: =InpActive!F110 -> 0 | G115: =InpActive!G110 -> £m | H115: =InpActive!H110 -> 0 | I115: =InpActive!I110 -> 0 | J115: =InpActive!J110 -> 0 | K115: =InpActive!K110 -> 0 | L115: =InpActive!L110 -> 0 | M115: =InpActive!M110 -> 0 | N115: =InpActive!N110 -> 0 | O115: =InpActive!O110 -> 0 | P115: =InpActive!P110 -> 0
E116: =InpActive!E111 -> TMS - Allowed Future expenditure on innovation projects - Nominal | F116: =InpActive!F111 -> 0 | G116: =InpActive!G111 -> £m | H116: =InpActive!H111 -> 0 | I116: =InpActive!I111 -> 0 | J116: =InpActive!J111 -> 0 | K116: =InpActive!K111 -> 0 | L116: =InpActive!L111 -> 0 | M116: =InpActive!M111 -> 0 | N116: =InpActive!N111 -> 0 | O116: =InpActive!O111 -> 0 | P116: =InpActive!P111 -> 0
E117: =InpActive!E112 -> WSH - Allowed Future expenditure on innovation projects - Nominal | F117: =InpActive!F112 -> 0 | G117: =InpActive!G112 -> £m | H117: =InpActive!H112 -> 0 | I117: =InpActive!I112 -> 0 | J117: =InpActive!J112 -> 0 | K117: =InpActive!K112 -> 0 | L117: =InpActive!L112 -> 0 | M117: =InpActive!M112 -> 0 | N117: =InpActive!N112 -> 0 | O117: =InpActive!O112 -> 0 | P117: =InpActive!P112 -> 0
E118: =InpActive!E113 -> WSX - Allowed Future expenditure on innovation projects - Nominal | F118: =InpActive!F113 -> 0 | G118: =InpActive!G113 -> £m | H118: =InpActive!H113 -> 0 | I118: =InpActive!I113 -> 0 | J118: =InpActive!J113 -> 0 | K118: =InpActive!K113 -> 0 | L118: =InpActive!L113 -> 0 | M118: =InpActive!M113 -> 0 | N118: =InpActive!N113 -> 0 | O118: =InpActive!O113 -> 0 | P118: =InpActive!P113 -> 0
E119: =InpActive!E114 -> YKY - Allowed Future expenditure on innovation projects - Nominal | F119: =InpActive!F114 -> 0 | G119: =InpActive!G114 -> £m | H119: =InpActive!H114 -> 0 | I119: =InpActive!I114 -> 0 | J119: =InpActive!J114 -> 0 | K119: =InpActive!K114 -> 0 | L119: =InpActive!L114 -> 0 | M119: =InpActive!M114 -> 0 | N119: =InpActive!N114 -> 0 | O119: =InpActive!O114 -> 0 | P119: =InpActive!P114 -> 0
E120: =InpActive!E115 -> AFW - Allowed Future expenditure on innovation projects - Nominal | F120: =InpActive!F115 -> 0 | G120: =InpActive!G115 -> £m | H120: =InpActive!H115 -> 0 | I120: =InpActive!I115 -> 0 | J120: =InpActive!J115 -> 0 | K120: =InpActive!K115 -> 0 | L120: =InpActive!L115 -> 0 | M120: =InpActive!M115 -> 0 | N120: =InpActive!N115 -> 0 | O120: =InpActive!O115 -> 0 | P120: =InpActive!P115 -> 0
E121: =InpActive!E116 -> BRL - Allowed Future expenditure on innovation projects - Nominal | F121: =InpActive!F116 -> 0 | G121: =InpActive!G116 -> £m | H121: =InpActive!H116 -> 0 | I121: =InpActive!I116 -> 0 | J121: =InpActive!J116 -> 0 | K121: =InpActive!K116 -> 0 | L121: =InpActive!L116 -> 0 | M121: =InpActive!M116 -> 0 | N121: =InpActive!N116 -> 0 | O121: =InpActive!O116 -> 0 | P121: =InpActive!P116 -> 0
E122: =InpActive!E117 -> PRT - Allowed Future expenditure on innovation projects - Nominal | F122: =InpActive!F117 -> 0 | G122: =InpActive!G117 -> £m | H122: =InpActive!H117 -> 0 | I122: =InpActive!I117 -> 0 | J122: =InpActive!J117 -> 0 | K122: =InpActive!K117 -> 0 | L122: =InpActive!L117 -> 0 | M122: =InpActive!M117 -> 0 | N122: =InpActive!N117 -> 0 | O122: =InpActive!O117 -> 0 | P122: =InpActive!P117 -> 0
E123: =InpActive!E118 -> SES - Allowed Future expenditure on innovation projects - Nominal | F123: =InpActive!F118 -> 0 | G123: =InpActive!G118 -> £m | H123: =InpActive!H118 -> 0 | I123: =InpActive!I118 -> 0 | J123: =InpActive!J118 -> 0 | K123: =InpActive!K118 -> 0 | L123: =InpActive!L118 -> 0 | M123: =InpActive!M118 -> 0 | N123: =InpActive!N118 -> 0 | O123: =InpActive!O118 -> 0 | P123: =InpActive!P118 -> 0
E124: =InpActive!E119 -> SEW - Allowed Future expenditure on innovation projects - Nominal | F124: =InpActive!F119 -> 0 | G124: =InpActive!G119 -> £m | H124: =InpActive!H119 -> 0 | I124: =InpActive!I119 -> 0 | J124: =InpActive!J119 -> 0 | K124: =InpActive!K119 -> 0 | L124: =InpActive!L119 -> 0 | M124: =InpActive!M119 -> 0 | N124: =InpActive!N119 -> 0 | O124: =InpActive!O119 -> 0 | P124: =InpActive!P119 -> 0
E125: =InpActive!E120 -> SSC - Allowed Future expenditure on innovation projects - Nominal | F125: =InpActive!F120 -> 0 | G125: =InpActive!G120 -> £m | H125: =InpActive!H120 -> 0 | I125: =InpActive!I120 -> 0 | J125: =InpActive!J120 -> 0 | K125: =InpActive!K120 -> 0 | L125: =InpActive!L120 -> 0 | M125: =InpActive!M120 -> 0 | N125: =InpActive!N120 -> 0 | O125: =InpActive!O120 -> 0 | P125: =InpActive!P120 -> 0
E126: Total allowed future expenditure - Nominal | G126: £m | H126: =SUM(J126:P126) -> 0 | J126: =SUM(J109:J125) -> 0 | K126: =SUM(K109:K125) -> 0 | L126: =SUM(L109:L125) -> 0 | M126: =SUM(M109:M125) -> 0 | N126: =SUM(N109:N125) -> 0 | O126: =SUM(O109:O125) -> 0 | P126: =SUM(P109:P125) -> 0
D128: Total Unused funds
E129: =E$66 -> Total Transferred - Nominal | F129: =F$66 -> 0 | G129: £m | H129: 0 | I129: 0 | J129: 0 | K129: 0 | L129: 0 | M129: 0 | N129: 0 | O129: 0 | P129: 0
E130: =E$86 -> Total Bids accepted - Nominal | F130: =F$86 -> 0 | G130: £m | H130: 0 | I130: 0 | J130: 0 | K130: 0 | L130: 0 | M130: 0 | N130: 0 | O130: 0 | P130: 0
E131: Total unused fund - Nominal | G131: £m | H131: =SUM(J131:P131) -> 0 | J131: =J129-J130 -> 0 | K131: =K129-K130 -> 0 | L131: =L129-L130 -> 0 | M131: 0 | N131: 0 | O131: 0 | P131: =P129-P130 -> 0
D133: Total Underspend
E134: =E$86 -> Total Bids accepted - Nominal | F134: =F$86 -> 0 | G134: £m | H134: 0 | I134: 0 | J134: 0 | K134: 0 | L134: 0 | M134: 0 | N134: 0 | O134: 0 | P134: 0
E135: =E$106 -> Total project spend - Nominal | F135: =F$106 -> 0 | G135: £m | H135: 0 | I135: 0 | J135: 0 | K135: 0 | L135: 0 | M135: 0 | N135: 0 | O135: 0 | P135: 0
E136: =E$126 -> Total allowed future expenditure - Nominal | F136: =F$126 -> 0 | G136: £m | H136: 0 | I136: 0 | J136: 0 | K136: 0 | L136: 0 | M136: 0 | N136: 0 | O136: 0 | P136: 0
E137: Total Underspend - Nominal | G137: £m | H137: =SUM(J137:P137) -> 0 | J137: =J134 - SUM(J135:J136) -> 0 | K137: =K134 - SUM(K135:K136) -> 0 | L137: =L134 - SUM(L135:L136) -> 0 | M137: 0 | N137: 0 | O137: 0 | P137: 0
D139: Total returned to customers
E140: =E$131 -> Total unused fund - Nominal | F140: =F$131 -> 0 | G140: £m | H140: 0 | I140: 0 | J140: 0 | K140: 0 | L140: 0 | M140: 0 | N140: 0 | O140: 0 | P140: 0
E141: =E$137 -> Total Underspend - Nominal | F141: =F$137 -> 0 | G141: £m | H141: 0 | I141: 0 | J141: 0 | K141: 0 | L141: 0 | M141: 0 | N141: 0 | O141: 0 | P141: 0
E142: Funds to be redistributed - Nominal | G142: £m | H142: =SUM(J142:P142) -> 0 | J142: =SUM(J140:J141) -> 0 | K142: =SUM(K140:K141) -> 0 | L142: 0 | M142: 0 | N142: 0 | O142: 0 | P142: 0
E144: =E$142 -> Funds to be redistributed - Nominal | F144: =F$142 -> 0 | G144: £m | H144: 0 | I144: 0 | J144: 0 | K144: 0 | L144: 0 | M144: 0 | N144: 0 | O144: 0 | P144: 0
E145: =Indexation!E$44 -> CPI(H): Fin year average - conversion from outturn to base year 2017-18 average - CALC | F145: =Indexation!F$44 -> 0 | G145: =Indexation!G$44 -> % | H145: =Indexation!H$44 -> 0 | I145: =Indexation!I$44 -> 0 | J145: =Indexation!J$44 -> 1.04160292 | K145: =Indexation!K$44 -> 1.062261698 | L145: =Indexation!L$44 -> 1.083551529 | M145: =Indexation!M$44 -> 1.106036579 | N145: =Indexation!N$44 -> 1.129263348 | O145: =Indexation!O$44 -> 1.152977878 | P145: =Indexation!P$44 -> 1.176037436
E146: Funds to be redistributed - Real | G146: £m | H146: =SUM(J146:P146) -> 0 | J146: =J144 / J145 -> 0 | K146: =K144 / K145 -> 0 | L146: 0 | M146: 0 | N146: 0 | O146: 0 | P146: 0
D148: Proportion of Funding allocated
E149: =E29 -> ANH - Proportion of Funding allocated | F149: 0 | G149: %
E150: HDD - Proportion of Funding allocated | F150: 0 | G150: %
E151: NES - Proportion of Funding allocated | F151: 0 | G151: %
E152: NWT - Proportion of Funding allocated | F152: 0 | G152: %
E153: SRN - Proportion of Funding allocated | F153: 0 | G153: %
E154: SVE - Proportion of Funding allocated | F154: 0 | G154: %
E155: SWB - Proportion of Funding allocated | F155: 0 | G155: %
E156: TMS - Proportion of Funding allocated | F156: 0 | G156: %
E157: WSH - Proportion of Funding allocated | F157: 0 | G157: %
E158: WSX - Proportion of Funding allocated | F158: 0 | G158: %
E159: YKY - Proportion of Funding allocated | F159: 0 | G159: %
E160: AFW - Proportion of Funding allocated | F160: 0 | G160: %
E161: BRL - Proportion of Funding allocated | F161: 0 | G161: %
E162: PRT - Proportion of Funding allocated | F162: 0 | G162: %
E163: SES - Proportion of Funding allocated | F163: 0 | G163: %
E164: SEW - Proportion of Funding allocated | F164: 0 | G164: %
E165: SSC - Proportion of Funding allocated | F165: 0 | G165: %
E166: Total Allocated | F166: 0 | G166: %
E168: =E$146 -> Funds to be redistributed - Real | F168: =F$146 -> 0 | G168: £m | H168: 0 | I168: 0 | J168: 0 | K168: 0 | L168: 0 | M168: 0 | N168: 0 | O168: 0 | P168: 0
D170: Proportion of Funding allocated
E171: ANH - Total to be redistributed - Real | H171: =SUM(J171:P171) -> 0 | J171: =J$168 * $F149 -> 0 | K171: =K$168 * $F149 -> 0 | L171: 0 | M171: 0 | N171: 0 | O171: 0 | P171: 0
E172: HDD - Total to be redistributed - Real | H172: 0 | J172: 0 | K172: =K$168 * $F150 -> 0 | L172: 0 | M172: 0 | N172: 0 | O172: 0 | P172: 0
E173: NES - Total to be redistributed - Real | H173: 0 | J173: 0 | K173: 0 | L173: 0 | M173: 0 | N173: 0 | O173: 0 | P173: 0
E174: NWT - Total to be redistributed - Real | H174: 0 | J174: 0 | K174: 0 | L174: 0 | M174: 0 | N174: 0 | O174: 0 | P174: 0
E175: SRN - Total to be redistributed - Real | H175: 0 | J175: 0 | K175: 0 | L175: 0 | M175: 0 | N175: 0 | O175: 0 | P175: 0
E176: SVE - Total to be redistributed - Real | H176: 0 | J176: 0 | K176: 0 | L176: 0 | M176: 0 | N176: 0 | O176: 0 | P176: 0
E177: SWB - Total to be redistributed - Real | H177: 0 | J177: 0 | K177: 0 | L177: 0 | M177: 0 | N177: 0 | O177: 0 | P177: 0
E178: TMS - Total to be redistributed - Real | H178: 0 | J178: 0 | K178: 0 | L178: 0 | M178: 0 | N178: 0 | O178: 0 | P178: 0
E179: WSH - Total to be redistributed - Real | H179: 0 | J179: 0 | K179: 0 | L179: 0 | M179: 0 | N179: 0 | O179: 0 | P179: 0
E180: WSX - Total to be redistributed - Real | H180: 0 | J180: 0 | K180: 0 | L180: 0 | M180: 0 | N180: 0 | O180: 0 | P180: 0
E181: YKY - Total to be redistributed - Real | H181: 0 | J181: 0 | K181: 0 | L181: 0 | M181: 0 | N181: 0 | O181: 0 | P181: 0
E182: AFW - Total to be redistributed - Real | H182: 0 | J182: 0 | K182: =K$168 * $F160 -> 0 | L182: 0 | M182: 0 | N182: 0 | O182: 0 | P182: 0
E183: BRL - Total to be redistributed - Real | H183: 0 | J183: 0 | K183: 0 | L183: 0 | M183: 0 | N183: 0 | O183: 0 | P183: 0
E184: PRT - Total to be redistributed - Real | H184: 0 | J184: 0 | K184: 0 | L184: 0 | M184: 0 | N184: 0 | O184: 0 | P184: 0
E185: SES - Total to be redistributed - Real | H185: 0 | J185: 0 | K185: 0 | L185: 0 | M185: 0 | N185: 0 | O185: 0 | P185: 0
E186: SEW - Total to be redistributed - Real | H186: 0 | J186: 0 | K186: 0 | L186: 0 | M186: 0 | N186: 0 | O186: 0 | P186: 0
E187: SSC - Total to be redistributed - Real | H187: 0 | J187: 0 | K187: 0 | L187: 0 | M187: 0 | N187: 0 | O187: 0 | P187: 0
E188: Total to be redistributed - Real | H188: 0 | J188: =SUM(J171:J187) -> 0 | K188: =SUM(K171:K187) -> 0 | L188: =SUM(L171:L187) -> 0 | M188: 0 | N188: 0 | O188: 0 | P188: 0
E189: Negative funding check | F189: =IF(SUM(J189:P189) <> 0, 1, 0) -> 0 | G189: check | H189: =SUM(J189:P189) -> 0 | J189: =COUNTIF(J171:J187, "<0") -> 0 | K189: =COUNTIF(K171:K187, "<0") -> 0 | L189: 0 | M189: 0 | N189: 0 | O189: 0 | P189: 0
E191: =InpActive!E$126 -> Financing cost index | F191: =InpActive!F$126 -> 0 | G191: =InpActive!G$126 -> Index | H191: =InpActive!H$126 -> 0 | I191: =InpActive!I$126 -> 0 | J191: =InpActive!J$126 -> 0 | K191: =InpActive!K$126 -> 4 | L191: =InpActive!L$126 -> 3 | M191: =InpActive!M$126 -> 2 | N191: =InpActive!N$126 -> 1 | O191: =InpActive!O$126 -> 0 | P191: =InpActive!P$126 -> 0
E193: =InpActive!E128 -> ANH - WACC | F193: =InpActive!F128 -> 0 | G193: =InpActive!G128 -> %
E194: =InpActive!E129 -> HDD - WACC | F194: =InpActive!F129 -> 0 | G194: =InpActive!G129 -> %
E195: =InpActive!E130 -> NES - WACC | F195: =InpActive!F130 -> 0 | G195: =InpActive!G130 -> %
E196: =InpActive!E131 -> NWT - WACC | F196: =InpActive!F131 -> 0 | G196: =InpActive!G131 -> %
E197: =InpActive!E132 -> SRN - WACC | F197: =InpActive!F132 -> 0 | G197: =InpActive!G132 -> %
E198: =InpActive!E133 -> SVE - WACC | F198: =InpActive!F133 -> 0 | G198: =InpActive!G133 -> %
E199: =InpActive!E134 -> SWB - WACC | F199: =InpActive!F134 -> 0 | G199: =InpActive!G134 -> %
E200: =InpActive!E135 -> TMS - WACC | F200: =InpActive!F135 -> 0 | G200: =InpActive!G135 -> %
E201: =InpActive!E136 -> WSH - WACC | F201: =InpActive!F136 -> 0 | G201: =InpActive!G136 -> %
E202: =InpActive!E137 -> WSX - WACC | F202: =InpActive!F137 -> 0 | G202: =InpActive!G137 -> %
E203: =InpActive!E138 -> YKY - WACC | F203: =InpActive!F138 -> 0 | G203: =InpActive!G138 -> %
E204: =InpActive!E139 -> AFW - WACC | F204: =InpActive!F139 -> 0 | G204: =InpActive!G139 -> %
E205: =InpActive!E140 -> BRL - WACC | F205: =InpActive!F140 -> 0 | G205: =InpActive!G140 -> %
E206: =InpActive!E141 -> PRT - WACC | F206: =InpActive!F141 -> 0 | G206: =InpActive!G141 -> %
E207: =InpActive!E142 -> SES - WACC | F207: =InpActive!F142 -> 0 | G207: =InpActive!G142 -> %
E208: =InpActive!E143 -> SEW - WACC | F208: =InpActive!F143 -> 0 | G208: =InpActive!G143 -> %
E209: =InpActive!E144 -> SSC - WACC | F209: =InpActive!F144 -> 0 | G209: =InpActive!G144 -> %
E211: ANH - Time value of money factor | G211: Factor | J211: =(1+$F193) ^ J$191 -> 1 | K211: =(1+$F193) ^ K$191 -> 1 | L211: 1 | M211: 1 | N211: 1 | O211: 1 | P211: 1
E212: HDD - Time value of money factor | G212: Factor | J212: =(1+$F194) ^ J$191 -> 1 | K212: 1 | L212: 1 | M212: 1 | N212: 1 | O212: 1 | P212: 1
E213: NES - Time value of money factor | G213: Factor | J213: =(1+$F195) ^ J$191 -> 1 | K213: 1 | L213: 1 | M213: 1 | N213: 1 | O213: 1 | P213: 1
E214: NWT - Time value of money factor | G214: Factor | J214: =(1+$F196) ^ J$191 -> 1 | K214: 1 | L214: 1 | M214: 1 | N214: 1 | O214: 1 | P214: 1
E215: SRN - Time value of money factor | G215: Factor | J215: =(1+$F197) ^ J$191 -> 1 | K215: 1 | L215: 1 | M215: 1 | N215: 1 | O215: 1 | P215: 1
E216: SVE - Time value of money factor | G216: Factor | J216: =(1+$F198) ^ J$191 -> 1 | K216: 1 | L216: 1 | M216: 1 | N216: 1 | O216: 1 | P216: 1
... 66 more rows

Sheet Outputs-->

Sheet Outputs
A1: =RIGHT(CELL("filename", $A$1), LEN(CELL("filename", $A$1)) - SEARCH("]", CELL("filename", $A$1))) -> Outputs
E2: =Time!E$22 -> Model Period BEG | J2: =Time!J$22 -> 2019-04-01 | K2: =Time!K$22 -> 2020-04-01 | L2: =Time!L$22 -> 2021-04-01 | M2: =Time!M$22 -> 2022-04-01 | N2: =Time!N$22 -> 2023-04-01 | O2: =Time!O$22 -> 2024-04-01 | P2: =Time!P$22 -> 2025-04-01
E3: =Time!E$23 -> Model Period END | F3: =Check!F$8 -> 0 | G3: Error chks | J3: =Time!J$23 -> 2020-03-31 | K3: =Time!K$23 -> 2021-03-31 | L3: =Time!L$23 -> 2022-03-31 | M3: =Time!M$23 -> 2023-03-31 | N3: =Time!N$23 -> 2024-03-31 | O3: =Time!O$23 -> 2025-03-31 | P3: =Time!P$23 -> 2026-03-31
E4: =Time!E$59 -> Pre Forecast vs Forecast | J4: =Time!J$59 -> Pre Fcst | K4: =Time!K$59 -> Forecast | L4: =Time!L$59 -> Forecast | M4: =Time!M$59 -> Forecast | N4: =Time!N$59 -> Forecast | O4: =Time!O$59 -> Forecast | P4: =Time!P$59 -> Post-Fcst
E5: =Time!E$101 -> Financial Year Ending | J5: =Time!J$101 -> 2020 | K5: =Time!K$101 -> 2021 | L5: =Time!L$101 -> 2022 | M5: =Time!M$101 -> 2023 | N5: =Time!N$101 -> 2024 | O5: =Time!O$101 -> 2025 | P5: =Time!P$101 -> 2026
E6: =Time!E$11 -> Model column counter | F6: Constant | G6: Unit | H6: Total | J6: =Time!J$11 -> 1 | K6: =Time!K$11 -> 2 | L6: =Time!L$11 -> 3 | M6: =Time!M$11 -> 4 | N6: =Time!N$11 -> 5 | O6: =Time!O$11 -> 6 | P6: =Time!P$11 -> 7
E10: ='Innovation funding return'!E267 -> ANH - Total to be redistributed - Real | F10: ='Innovation funding return'!H267 -> 0 | G10: ='Innovation funding return'!G267 -> £m
E11: ='Innovation funding return'!E268 -> HDD - Total to be redistributed - Real | F11: ='Innovation funding return'!H268 -> 0 | G11: ='Innovation funding return'!G268 -> £m
E12: ='Innovation funding return'!E269 -> NES - Total to be redistributed - Real | F12: ='Innovation funding return'!H269 -> 0 | G12: ='Innovation funding return'!G269 -> £m
E13: ='Innovation funding return'!E270 -> NWT - Total to be redistributed - Real | F13: ='Innovation funding return'!H270 -> 0 | G13: ='Innovation funding return'!G270 -> £m
E14: ='Innovation funding return'!E271 -> SRN - Total to be redistributed - Real | F14: ='Innovation funding return'!H271 -> 0 | G14: ='Innovation funding return'!G271 -> £m
E15: ='Innovation funding return'!E272 -> SVE - Total to be redistributed - Real | F15: ='Innovation funding return'!H272 -> 0 | G15: ='Innovation funding return'!G272 -> £m
E16: ='Innovation funding return'!E273 -> SWB - Total to be redistributed - Real | F16: ='Innovation funding return'!H273 -> 0 | G16: ='Innovation funding return'!G273 -> £m
E17: ='Innovation funding return'!E274 -> TMS - Total to be redistributed - Real | F17: ='Innovation funding return'!H274 -> 0 | G17: ='Innovation funding return'!G274 -> £m
E18: ='Innovation funding return'!E275 -> WSH - Total to be redistributed - Real | F18: ='Innovation funding return'!H275 -> 0 | G18: ='Innovation funding return'!G275 -> £m
E19: ='Innovation funding return'!E276 -> WSX - Total to be redistributed - Real | F19: ='Innovation funding return'!H276 -> 0 | G19: ='Innovation funding return'!G276 -> £m
E20: ='Innovation funding return'!E277 -> YKY - Total to be redistributed - Real | F20: ='Innovation funding return'!H277 -> 0 | G20: ='Innovation funding return'!G277 -> £m
E21: ='Innovation funding return'!E278 -> AFW - Total to be redistributed - Real | F21: ='Innovation funding return'!H278 -> 0 | G21: ='Innovation funding return'!G278 -> £m
E22: ='Innovation funding return'!E279 -> BRL - Total to be redistributed - Real | F22: ='Innovation funding return'!H279 -> 0 | G22: ='Innovation funding return'!G279 -> £m
E23: ='Innovation funding return'!E280 -> PRT - Total to be redistributed - Real | F23: ='Innovation funding return'!H280 -> 0 | G23: ='Innovation funding return'!G280 -> £m
E24: ='Innovation funding return'!E281 -> SES - Total to be redistributed - Real | F24: ='Innovation funding return'!H281 -> 0 | G24: ='Innovation funding return'!G281 -> £m
E25: ='Innovation funding return'!E282 -> SEW - Total to be redistributed - Real | F25: ='Innovation funding return'!H282 -> 0 | G25: ='Innovation funding return'!G282 -> £m
E26: ='Innovation funding return'!E283 -> SSC - Total to be redistributed - Real | F26: ='Innovation funding return'!H283 -> 0 | G26: ='Innovation funding return'!G283 -> £m
E28: ='Innovation funding return'!E284 -> Industry - Total to be redistributed - Real | F28: ='Innovation funding return'!H284 -> 0 | G28: ='Innovation funding return'!G284 -> £m
A30: END OF SHEET

Sheet Integrity checks-->

Sheet Check
A1: =RIGHT(CELL("filename", $A$1), LEN(CELL("filename", $A$1)) - SEARCH("]", CELL("filename", $A$1))) -> Check
E2: =Time!E$22 -> Model Period BEG | J2: =Time!J$22 -> 2019-04-01 | K2: =Time!K$22 -> 2020-04-01 | L2: =Time!L$22 -> 2021-04-01 | M2: =Time!M$22 -> 2022-04-01 | N2: =Time!N$22 -> 2023-04-01 | O2: =Time!O$22 -> 2024-04-01 | P2: =Time!P$22 -> 2025-04-01
E3: =Time!E$23 -> Model Period END | F3: =Check!F$8 -> 0 | G3: Error chks | J3: =Time!J$23 -> 2020-03-31 | K3: =Time!K$23 -> 2021-03-31 | L3: =Time!L$23 -> 2022-03-31 | M3: =Time!M$23 -> 2023-03-31 | N3: =Time!N$23 -> 2024-03-31 | O3: =Time!O$23 -> 2025-03-31 | P3: =Time!P$23 -> 2026-03-31
E4: =Time!E$59 -> Pre Forecast vs Forecast | J4: =Time!J$59 -> Pre Fcst | K4: =Time!K$59 -> Forecast | L4: =Time!L$59 -> Forecast | M4: =Time!M$59 -> Forecast | N4: =Time!N$59 -> Forecast | O4: =Time!O$59 -> Forecast | P4: =Time!P$59 -> Post-Fcst
E5: =Time!E$101 -> Financial Year Ending | J5: =Time!J$101 -> 2020 | K5: =Time!K$101 -> 2021 | L5: =Time!L$101 -> 2022 | M5: =Time!M$101 -> 2023 | N5: =Time!N$101 -> 2024 | O5: =Time!O$101 -> 2025 | P5: =Time!P$101 -> 2026
E6: =Time!E$11 -> Model column counter | F6: Constant | G6: Unit | H6: Total | J6: =Time!J$11 -> 1 | K6: =Time!K$11 -> 2 | L6: =Time!L$11 -> 3 | M6: =Time!M$11 -> 4 | N6: =Time!N$11 -> 5 | O6: =Time!O$11 -> 6 | P6: =Time!P$11 -> 7
E8: Total error checks | F8: =SUM(F10:F14) -> 0 | G8: check
A10: [Do not delete]
E12: ='Innovation funding return'!E189 -> Negative funding check | F12: ='Innovation funding return'!F189 -> 0 | G12: ='Innovation funding return'!G189 -> check
A14: [Do not delete]
A16: END OF SHEET
